Cogmind - Beta 10.2 @@@ ROGUE MODE // 2021.01.18 @ 18:28:40 Player: cptwinky Result: Destroyed by P-80 Master with Gamma Rifle Performance ------------- Evolutions (9) 4500 Regions Visited (35) 7000 Robots Destroyed (844) 4220 Value Destroyed (42516) 42516 Prototype IDs (74) 1480 Alien Tech Used (9) 1800 Bonus (24073) 24073 TOTAL SCORE: 85589 Bonus ------- Triggered High Security 1000 High Alert Combat Kills 18290 Follower Combat Kills 1074 Met Data Miner 300 Met Imprinter 300 Met Zhirov 300 Scanned by Researcher 500 Acquired SGEMP 2000 Delivered SGEMP 2000 Friendly Fire -1691 Cogmind --------- Core Integrity 0/1600 Matter 228/300 Energy 88/100 System Corruption 0% Temperature Cool (0) Movement Core (50) Location -1/Command Parts ------- > --- POWER (2) -------- (None) > --- PROPULSION (4) --- (None) > --- UTILITY (18) ----- (None) > --- WEAPON (2) ------- (None) > --- INVENTORY (4) ---- Advanced Matter Compressor (400) Experimental ECM Suite Hacking Drone Bay (1/1) Minesniffer Drone Bay (10/10) Peak State ------------ > --- POWER ------------ Improved Quantum Reactor Improved Quantum Reactor > --- PROPULSION ------- Biometal Heavy Treads Advanced Heavy Siege Treads > --- UTILITY ---------- Experimental Power Amplifier Experimental Cooling System Large Storage Unit High-capacity Storage Unit High-capacity Storage Unit High-capacity Storage Unit High-capacity Storage Unit Improved Energy Well Experimental Targeting Computer Experimental Armor Integrity Analyzer Advanced Weapon Cycler Centrium Medium Armor Plating Heavy Regenerative Plating Experimental Force Field Advanced System Shield > --- WEAPON ----------- Compact Linear Accelerator Hypercooled Linear Accelerator > --- INVENTORY -------- Improved Quantum Reactor Improved Quantum Reactor Enhanced Armored Heavy Treads Advanced Cryofiber Web Experimental Cooling System Advanced Matter Compressor Inertial Stasis Machine Experimental Sensor Array Experimental Transmission Jammer Experimental ECM Suite Centrium Medium Armor Plating Thermal Barrier Advanced Force Field Advanced Force Field Improved Hacking Suite Advanced Component Analysis Suite Hacking Drone Bay Minesniffer Drone Bay Minesniffer Drone Bay Minesniffer Drone Bay Transdimensional Reconstructor High-powered Transdimensional Reconstructor Matter Drive Warp Gun Heavy Proton Cannon Heavy Proton Cannon Cooled Proton Cannon Cooled Proton Cannon Tri-rail Accelerator Hypercooled Linear Accelerator Heavy Proton Missile Launcher Heavy Proton Missile Launcher Advanced Datajack Core Stripper Plasma Lance CR-A16's Behemoth Slayer SGEMP Prototype [Rating: 208] Favorites ----------- Power Reinforced Deuterium Engine Engine Reinforced Deuterium Engine Power Core Reinforced Fission Core Reactor Improved Quantum Reactor Propulsion Light Treads Treads Light Treads Leg Biometal Leg Wheel Armored Wheel Utility High-capacity Storage Unit Device Experimental Sensor Array Storage High-capacity Storage Unit Processor Advanced Signal Interpreter Hackware Improved System Shield Protection Medium Reactive Plating Artifact Matter Drive Weapon Advanced EMP Blaster Energy Gun Beamcaster Energy Cannon Advanced Beam Cannon Ballistic Gun Light Assault Rifle Ballistic Cannon Hypercooled Linear Accelerator Launcher Advanced EMP Blaster Special Weapon Flamer Impact Weapon Core Stripper Slashing Weapon Makeshift Axe Piercing Weapon CR-A16's Pointy Stick Special Melee Weapon Improved Datajack Build | -11 -10 -10 -9 -9 -9 -8 -8 -8 -7 -7 -7 -7 -6 -6 -6 -6 -6 -5 -5 -5 -5 -5 -4 -4 -4 -4 -4 -3 -3 -3 -3 -2 -2 -1 -1 ------- Run | Scr Mat Min Mat Min Exi Min Mat Sto Fac Low Low Dat Pro Fac Low Low Zio Pro Fac Upp Upp Zhi Pro Fac Upp Upp War Pro Res Qua Sec Res Tes Acc Com Slots Evolved 18 | . . . 2 . . . 2 . 2 . . . . 2 . . . . 2 . . . . 2 . . . . 2 . . 2 . 2 . Power 1 | . . . . . . . . . . . . . . . . . . . 1 . . . . . . . . . . . . . . . . Propulsion 2 | . . . . . . . 1 . . . . . . 1 . . . . . . . . . . . . . . . . . . . . . Utility 15 | . . . 2 . . . 1 . 2 . . . . 1 . . . . 1 . . . . 2 . . . . 2 . . 2 . 2 . Weapon . | . . . . . . . . . . . . . . . . . . . . . . . . . . . . . . . . . . . . Parts Attached 1015 | 7 11 4 43 3 . 8 33 39 10 21 1 . 12 57 34 14 9 8 41 45 14 12 26 34 24 39 4 24 40 144 74 29 66 24 61 Power 42 | 1 1 1 3 . . . 3 2 . 1 . . . 1 . . . . 2 1 1 2 2 1 . 3 . . . 7 5 1 2 1 1 Engine 16 | 1 1 1 2 . . . 2 2 . 1 . . . 1 . . . . . 1 1 1 1 . . 1 . . . . . . . . . Core 11 | . . . 1 . . . 1 . . . . . . . . . . . 2 . . . 1 . . 2 . . . 3 1 . . . . Reactor 15 | . . . . . . . . . . . . . . . . . . . . . . 1 . 1 . . . . . 4 4 1 2 1 1 Propulsion 116 | 2 3 1 12 . . 1 9 14 1 3 . . 2 6 . . 2 1 4 1 1 . . 3 2 6 1 2 5 14 2 . 2 . 16 Treads 107 | 2 3 1 9 . . 1 9 14 1 3 . . 2 6 . . 2 1 4 1 1 . . 3 2 5 1 2 5 14 2 . 2 . 11 Leg 6 | . . . . . . . . . . . . . . . . . . . . . . . . . . 1 . . . . . . . . 5 Wheel 3 | . . . 3 . . . . . . . . . . . . . . . . . . . . . . . . . . . . . . . . Hover . | . . . . . . . . . . . . . . . . . . . . . . . . . . . . . . . . . . . . Flight . | . . . . . . . . . . . . . . . . . . . . . . . . . . . . . . . . . . . . Utility 448 | 2 4 1 15 . . 1 9 5 5 8 1 . 3 27 17 11 4 6 11 27 6 7 10 15 18 17 3 15 19 80 33 16 22 13 17 Device 260 | . . . 3 . . . 1 3 1 4 . . 3 12 11 8 2 2 7 16 4 4 4 6 12 11 2 8 9 60 20 13 16 11 7 Storage 32 | 2 2 . 3 . . . 3 1 . . . . . 5 . . 1 2 . 2 . . . 1 . 1 . . . 4 3 . 1 . 1 Processor 13 | . . . . . . . 2 . 1 . . . . . . 1 . . . 1 . . . 2 . . . . . 1 2 1 1 1 . Hackware 10 | . . . 1 . . . . . 1 . . . . 2 . . . . 1 . . . 1 1 . . . . . 1 . . 2 . . Protection 131 | . 2 1 8 . . 1 3 1 2 4 1 . . 8 6 2 1 2 3 8 2 3 5 5 6 5 1 7 10 13 8 2 2 1 8 Artifact 2 | . . . . . . . . . . . . . . . . . . . . . . . . . . . . . . 1 . . . . 1 Weapon 409 | 2 3 1 13 3 . 6 12 18 4 9 . . 7 23 17 3 3 1 24 16 6 3 14 15 4 13 . 7 16 43 34 12 40 10 27 Energy Gun 13 | . 1 1 2 . . . 2 1 . 1 . . . . . . . . . . . . . . . . . 1 1 . . . 2 . 1 Energy Cannon 157 | . . . 5 1 . 4 7 6 2 . . . 1 12 4 2 1 1 2 6 1 . 7 5 . 4 . 2 7 16 19 7 21 5 9 Ballistic Gun 41 | 2 2 . 2 . . 1 . 1 . . . . . 1 7 . . . 11 1 . . 1 2 . 1 . 1 4 3 . . 1 . . Ballistic Cannon 37 | . . . 1 . . . . . . . . . . . . 1 . . . . . . . . . . . . . 5 2 2 13 4 9 Launcher 113 | . . . 2 2 . 1 2 8 2 5 . . 1 8 6 . 1 . 11 9 1 2 4 6 2 5 . 3 3 13 5 2 2 . 7 Special Weapon 10 | . . . . . . . . . . 2 . . 1 1 . . . . . . 3 . 1 1 . 1 . . . . . . . . . Impact Weapon 2 | . . . . . . . . . . . . . . . . . . . . . . . . . . . . . . 1 1 . . . . Slashing Weapon 5 | . . . . . . . . 1 . 1 . . 3 . . . . . . . . . . . . . . . . . . . . . . Piercing Weapon 18 | . . . . . . . . . . . . . . . . . 1 . . . . 1 . . 1 2 . . 1 3 6 1 1 . 1 Special Melee Weapon 13 | . . . 1 . . . 1 1 . . . . 1 1 . . . . . . 1 . 1 1 1 . . . . 2 1 . . 1 . Unidentified Prototypes 42 | . . . 3 . . . . 2 . 1 . . . 2 . . 1 . 1 1 . 5 . . . . 1 . 1 13 8 . 1 . 2 Parts Lost 97 | . 3 1 2 . . 1 2 2 . . . . . . . . . . 8 1 . . . . 2 4 . 1 5 5 8 1 7 . 44 Power 8 | . 1 . 1 . . . 1 . . . . . . . . . . . . . . . . . . . . . . 1 1 . . . 3 Propulsion 23 | . 1 1 . . . . . 1 . . . . . . . . . . 2 . . . . . . . . 1 1 1 . . . . 15 Utility 50 | . . . 1 . . 1 . . . . . . . . . . . . 5 1 . . . . 1 4 . . 4 2 6 . 5 . 20 Weapon 16 | . 1 . . . . . 1 1 . . . . . . . . . . 1 . . . . . 1 . . . . 1 1 1 2 . 6 Highest Loss Streak 35 | . 2 1 2 . . 1 2 1 . . . . . . . . . . 3 1 . . . . 2 4 . 1 2 3 2 1 5 . 35 Average Slot Usage (%) 95 | . 99 100 99 100 100 100 98 99 99 99 100 100 100 99 99 99 96 93 96 99 100 99 94 94 94 94 95 95 86 85 79 85 85 87 73 Engine 5 | . 14 14 10 . . . 4 7 7 7 7 7 7 6 6 6 6 6 4 2 8 11 11 9 5 5 5 5 4 . . . . . . Core 2 | . . . . 11 11 11 4 1 . . . . . . . . . . 4 7 2 . . . . 2 5 5 4 3 3 . . . . Reactor 1 | . . . . . . . . . . . . . . . . . . . . . . . . . 5 2 . . . 4 4 8 8 7 6 Treads 20 | . 28 28 20 22 22 22 27 26 23 22 21 21 21 25 25 25 25 25 21 21 22 22 22 20 20 19 20 20 13 10 9 8 8 7 6 Device 10 | . . . 1 . . . 3 10 8 13 14 7 13 6 12 11 12 10 10 16 18 12 9 8 9 11 10 8 11 18 14 20 14 15 13 Storage 23 | . 15 14 28 33 33 33 27 27 23 22 21 21 21 23 25 25 21 18 22 22 22 22 22 20 20 20 25 25 22 22 25 25 25 23 21 Processor 4 | . . . . . . . 5 . 6 7 7 7 7 6 6 6 6 6 5 5 5 5 5 6 10 10 10 10 9 4 1 7 8 10 6 Hackware 1 | . . . 4 . . . . . 2 . . . . 8 . . . . 2 . . . . 8 5 4 . . . 3 . . 4 7 3 Protection 9 | . 12 14 9 11 11 11 9 7 10 8 14 21 14 10 12 12 12 13 12 9 8 14 12 11 10 7 10 11 10 6 9 8 7 7 6 Energy Cannon 5 | . . . 17 17 11 21 16 6 5 . . . . 5 . 4 2 . 1 4 . . 3 4 . 1 . 1 3 3 6 5 4 3 2 Launcher 5 | . . . . 4 11 . . 10 9 13 14 14 8 5 8 7 6 11 3 6 6 3 5 4 7 6 10 7 1 1 . . . . . Naked Turns 11 | . . . . . . . . . . . . . . . . . . . . . . . . . . . . . . . . . . . 11 Heaviest Build 325 | 13 41 48 114 112 109 114 119 126 158 165 184 184 184 218 218 205 205 224 215 203 188 189 208 208 202 222 223 226 241 248 263 252 259 253 325 Greatest Support 175 | 40 40 40 40 40 40 40 66 60 62 74 74 74 74 102 100 100 106 106 114 116 116 109 109 109 111 113 109 113 128 150 175 175 175 155 155 Greatest Overweight (x) 6 | . 1 1 6 2 2 2 1 2 2 2 2 2 3 2 2 2 1 2 2 1 1 1 1 1 1 2 2 2 2 2 1 1 1 1 4 Average Overweight (x) 1 | . . 1 2 2 2 2 1 1 2 1 2 2 2 1 1 1 1 1 1 1 1 1 1 1 1 1 2 1 1 1 1 1 1 1 1 Largest Inventory Capacity 42 | 8 12 12 28 28 28 28 28 28 28 28 28 28 28 36 36 36 40 40 36 36 36 36 36 36 36 42 42 42 42 42 42 42 42 42 42 Average Capacity 34 | 5 9 12 24 28 28 28 28 28 28 28 28 28 28 34 36 36 38 39 36 36 36 36 36 36 36 36 42 42 42 42 42 42 42 42 39 Most Carried 42 | 4 12 12 28 28 28 28 28 28 28 28 28 28 28 36 36 36 40 40 36 36 36 36 36 36 36 40 42 42 42 42 42 42 42 42 42 Average Carried 33 | 2 8 11 23 28 28 27 27 27 26 27 27 28 28 32 35 35 37 39 34 35 35 35 35 35 35 35 41 41 40 40 40 40 41 39 38 Final Capacity 42 | 8 12 12 28 28 28 28 28 28 28 28 28 28 28 36 36 36 40 36 36 36 36 36 36 36 36 42 42 42 42 42 42 42 42 42 4 Final Carried 42 | 4 11 12 28 28 28 28 28 28 27 27 28 28 28 36 36 36 40 36 36 36 36 36 36 36 35 40 42 42 42 42 42 42 42 42 4 Class Distribution -------------------- 49% | Hauler-Mutant 28% | Scavenger-Mutant 18% | Trapper-Mutant Dominant Class ---------------- Mutant | -10/Materials Mutant | -10/Mines Hauler-Mutant | -9/Materials Hauler-Mutant | -9/Mines Hauler-Mutant | -9/Exiles Hauler-Mutant | -8/Mines Hauler-Mutant | -8/Materials Hauler-Mutant | -8/Storage Hauler-Mutant | -7/Factory Hauler-Mutant | -7/Lower Caves Hauler-Mutant | -7/Lower Caves Hauler-Mutant | -7/Data Miner Hauler-Mutant | -6/Proximity Caves Hauler-Mutant | -6/Factory Trapper-Mutant | -6/Lower Caves Trapper-Mutant | -6/Lower Caves Trapper-Mutant | -6/Zion Trapper-Mutant | -5/Proximity Caves Hauler-Mutant | -5/Factory Scavenger-Mutant | -5/Upper Caves Scavenger-Mutant | -5/Upper Caves Scavenger-Mutant | -5/Zhirov Scavenger-Mutant | -4/Proximity Caves Scavenger-Mutant | -4/Factory Scavenger-Mutant | -4/Upper Caves Scavenger-Mutant | -4/Upper Caves Trapper-Mutant | -4/Warlord Hauler-Mutant | -3/Proximity Caves Trapper-Mutant | -3/Research Hauler-Mutant | -3/Quarantine Hauler-Mutant | -3/Section 7 Scavenger-Mutant | -2/Research Hauler-Mutant | -2/Testing Hauler-Mutant | -1/Access Hauler-Mutant | -1/Command Resources | -11 -10 -10 -9 -9 -9 -8 -8 -8 -7 -7 -7 -7 -6 -6 -6 -6 -6 -5 -5 -5 -5 -5 -4 -4 -4 -4 -4 -3 -3 -3 -3 -2 -2 -1 -1 ----------- Run | Scr Mat Min Mat Min Exi Min Mat Sto Fac Low Low Dat Pro Fac Low Low Zio Pro Fac Upp Upp Zhi Pro Fac Upp Upp War Pro Res Qua Sec Res Tes Acc Com Matter Collected 17697 | 274 205 45 583 60 . 105 395 675 70 462 96 . 179 776 457 149 131 65 1132 701 170 130 351 431 345 514 . 363 572 2413 1010 948 2342 186 1362 Remotely 10 | . . . . . . . . . . . . . . . . 10 . . . . . . . . . . . . . . . . . . . Salvage Created 48002 | 76 747 57 1817 92 . 184 1599 7152 425 688 188 . 507 1568 471 75 . 202 2447 1159 188 290 1114 2007 784 1482 . 699 1025 3141 5567 1667 4198 782 5604 Parts 1962 | 2 47 1 136 11 . 12 89 329 21 18 3 . 18 60 23 2 . 9 132 44 15 1 28 74 22 37 . 28 47 141 205 42 146 47 172 Haulers Intercepted 25 | . 1 . 6 . . . 5 6 . . . . . 2 . . . . 1 . . . . 2 . . . . . 1 . . 1 . . Recyclers Shooed 16 | . . . 2 . . . 1 3 . . . . . 1 . . . . 3 . . . . . . . . . . . . . . 1 5 Parts Field Recycled . | . . . . . . . . . . . . . . . . . . . . . . . . . . . . . . . . . . . . Retrieved Matter . | . . . . . . . . . . . . . . . . . . . . . . . . . . . . . . . . . . . . Parts Self-Destructed 73 | . . . . . . . . . . 3 1 . 2 . 12 . 6 4 . 2 9 1 3 . 12 10 . 8 . . . . . . . Prevented 157 | . . . . . . . . . . 12 3 . 9 . 19 2 . 3 . 30 5 . 30 . 12 16 . 16 . . . . . . . Kills | -11 -10 -10 -9 -9 -9 -8 -8 -8 -7 -7 -7 -7 -6 -6 -6 -6 -6 -5 -5 -5 -5 -5 -4 -4 -4 -4 -4 -3 -3 -3 -3 -2 -2 -1 -1 ------- Run | Scr Mat Min Mat Min Exi Min Mat Sto Fac Low Low Dat Pro Fac Low Low Zio Pro Fac Upp Upp Zhi Pro Fac Upp Upp War Pro Res Qua Sec Res Tes Acc Com Combat Hostiles Destroyed 670 | . 16 1 33 5 . 8 26 117 7 10 3 . 10 17 10 1 . 6 35 16 6 . 11 18 14 17 . 13 14 35 75 19 58 7 62 Melee 9 | . . . . . . . . . . . . . . . . . . . . . . . . . . 1 . . . 1 7 . . . . Guns 47 | . 16 1 6 . . . . . . . . . . . 2 . . . 12 . . . . 3 . . . . 5 2 . . . . . Cannons 189 | . . . 26 1 . 3 20 18 3 . . . . 7 . . . . . . . . 1 2 . 1 . 1 4 6 23 9 39 6 19 AOE 243 | . . . 1 4 . 5 6 84 2 4 1 . 8 7 4 1 . 5 19 13 5 . 4 5 10 14 . 8 1 6 11 1 2 . 12 Classes Destroyed 28 | 1 5 1 2 1 . 1 1 4 1 3 . . . . 1 . . . . . . . . . . . . . . 2 2 . 1 1 1 Worker 45 | . . . 2 . . 1 1 15 1 . . . . 3 . . . . 6 . . . . 3 . . . . . . 1 2 1 3 6 Builder 25 | . . . . . . . . 8 . . . . . . . . . . 7 . . . . 5 . . . . 1 1 1 1 1 . . Tunneler 3 | . . . . 1 . . 1 . . . . . . . . . . . . . . . . 1 . . . . . . . . . . . Hauler 25 | . 1 . 6 . . . 5 6 . . . . . 2 . . . . 1 . . . . 2 . . . . . 1 . . 1 . . Recycler 16 | 1 . . . . . . . 1 . . . . . 2 . . . . . . . . . 2 . . . . . . . 1 3 . 6 Minesweeper 6 | . . . . . . . . . . 1 . . . . . . . . . . 1 . 1 . . 2 . 1 . . . . . . . Mechanic 10 | . . . . . . . 1 7 . . . . . . . . . . . . . . . . . . . . . . . 1 . . 1 Operator 10 | . 2 . 3 . . . . 1 . . . . . 1 . . . . . . . . . . . . . . . 1 1 . . 1 . Drone 2 | . . . . . . . . 2 . . . . . . . . . . . . . . . . . . . . . . . . . . . Watcher 27 | . 2 . 5 . . . 4 1 . . . . . 1 . . . . 3 . . . . 4 . . . . . 2 . 1 1 1 2 Swarmer 100 | . 2 . 3 4 . 4 3 3 . 2 . . 5 2 4 . . 5 4 7 5 . 1 . 6 11 . 9 2 3 5 . 5 . 5 Saboteur 4 | . . . . . . . . . . . . . . . . . . . . . . . . . . . . . . . 1 . . . 3 Grunt 239 | . 14 . 17 1 . 3 13 55 5 2 2 . . 3 1 . . . 14 1 . . 7 9 5 4 . . 3 7 35 9 12 . 17 Brawler 37 | . . . . . . . . 18 1 . . . 3 . 1 . . . . 2 . . 1 . 2 . . . 1 . 2 . 3 . 3 Duelist 39 | . . . 3 . . . 2 13 . 1 1 . . 1 . . . . 1 2 . . . 3 . . . . . . 3 . 5 . 4 Protector 16 | . . . . . . . . 13 . . . . . . . . . . . . . . . 1 . . . . . . . . . . 2 Researcher 3 | . . . . . . . . . . 1 . . . . . . . . . . . . . . . . . . . 1 . . 1 . . Sentry 68 | . . 1 10 . . . 7 14 . . . . 2 2 1 1 . . 4 3 . . 1 1 1 1 . . 2 3 7 6 . . 1 Specialist 9 | . . . . . . . . . . . . . . . . . . . . . . . . . . . . . . 6 . . 3 . . Hunter 49 | . . . . . . 1 1 2 . . . . . 4 2 . . 1 7 . . . . 2 . . . 4 . . 8 . 7 4 6 Programmer 74 | . . . . . . . . . 1 . . . . 5 1 . . . 5 . . . . 2 . . . . 5 7 11 4 21 1 11 Q-Series 2 | . . . . . . . . . . . . . . . . . . . . . . . . . . . . . . . . . . 2 . Behemoth 6 | . . . . . . . . . . 1 . . . . . . . . . 1 1 . 1 . . 1 . . 1 . . . . . . Quarantine Guard 8 | . . . . . . . . . . . . . . . . . . . . . . . . . . . . . . 8 . . . . . S7 Guard 1 | . . . . . . . . . . . . . . . . . . . . . . . . . . . . . . . 1 . . . . Investigator 1 | . . . . . . . . . . . . . . . . . . . . . . . . . . . . . . . . . . . 1 Striker 8 | . . . . . . . . . . . . . . . . . . . . . . . . . . . . . . . . . 1 . 7 Executioner 3 | . . . . . . . . . . . . . . . . . . . . . . . . . . . . . . . . . . . 3 Alpha 7 3 | . . . . . . . . . . . . . . . . . . . . . . . . . . . . . . . 2 . 1 . . Fortress 1 | . . . . . . . . . . . . . . . . . . . . . . . . . . . . . . 1 . . . . . Tinkerer 1 | . . . . . . . . . . . . . . . 1 . . . . . . . . . . . . . . . . . . . . Thug 3 | . . . . . . . . 2 . 1 . . . . . . . . . . . . . . . . . . . . . . . . . Butcher 3 | . . . . . . . . . . 3 . . . . . . . . . . . . . . . . . . . . . . . . . Best Kill Streak 23 | 1 4 1 5 4 . 4 5 23 5 4 3 . 6 5 4 1 . 5 13 8 5 . 4 8 7 5 . 5 4 5 11 10 17 6 19 Combat Bots Only 22 | . 3 1 4 4 . 4 4 22 4 4 3 . 6 4 4 1 . 5 11 8 5 . 4 5 7 5 . 5 4 4 10 8 15 4 16 Max Kills in Single Turn 11 | 1 1 1 1 3 . 3 2 11 3 1 1 . 4 3 3 1 . 3 4 3 3 . 2 3 3 4 . 5 1 2 3 3 2 2 4 Gunslinging . | . . . . . . . . . . . . . . . . . . . . . . . . . . . . . . . . . . . . Exploded 11 | . . . 1 3 . 3 2 11 2 1 1 . 4 3 3 1 . 3 3 3 3 . 2 3 3 4 . 5 1 2 3 1 1 . 2 Melee 1 | . . . . . . . . . . . . . . . . . . . . . . . . . . 1 . . . 1 1 . . . . Uniques/NPCs Destroyed . | . . . . . . . . . . . . . . . . . . . . . . . . . . . . . . . . . . . . Combat | -11 -10 -10 -9 -9 -9 -8 -8 -8 -7 -7 -7 -7 -6 -6 -6 -6 -6 -5 -5 -5 -5 -5 -4 -4 -4 -4 -4 -3 -3 -3 -3 -2 -2 -1 -1 -------- Run | Scr Mat Min Mat Min Exi Min Mat Sto Fac Low Low Dat Pro Fac Low Low Zio Pro Fac Upp Upp Zhi Pro Fac Upp Upp War Pro Res Qua Sec Res Tes Acc Com Damage Taken 46731 | . 667 60 796 77 . 350 1462 1465 247 478 62 . 117 802 164 . . 9 3150 265 285 . 555 719 490 921 . 949 2015 3983 7394 1289 5155 354 12451 Core 3820 | . 78 12 155 16 . 13 179 133 28 . . . 19 82 14 . . . 303 21 41 . . 117 66 46 . . 159 243 385 21 271 12 1406 Absorbed by Shields 12425 | . . . . . . . . . . . . . . 16 . . . . 73 65 . . . . . . . . . 984 4688 988 2340 . 3271 Reduced by Siege Mode 595 | . . . . . . . . . . . . . . . . . . . . . . . . . . . . . . 11 155 21 310 . 98 Core Remaining (%) 68 | 100 . 64 . . . 54 . 43 . . . . 93 . . . . 88 . . . . 63 . . . . 80 . . 16 . 79 . . Volleys Fired 1637 | 2 72 11 127 6 . 17 115 108 13 23 3 . 7 61 23 5 14 6 86 42 33 . 50 50 10 42 . 27 44 109 169 56 170 18 118 Largest 2 | 2 2 2 2 1 . 2 2 2 2 2 2 . 2 2 2 1 1 2 2 2 2 . 2 2 2 2 . 2 2 2 2 2 2 2 2 Hottest 201 | 40 70 75 136 68 . 136 136 136 136 100 72 . 100 158 132 36 90 90 90 162 100 . 162 162 72 162 . 90 162 162 162 201 162 134 175 Shots Fired 2467 | 4 144 17 166 6 . 21 138 191 24 35 6 . 10 103 31 5 14 10 164 60 35 . 64 73 19 58 . 34 61 148 251 66 286 34 189 Gun 470 | 4 144 17 35 . . . 14 11 . 1 . . . . 18 . . . 117 12 . . 9 16 . 6 . 13 30 23 . . . . . Cannon 1499 | . . . 128 4 . 17 118 121 18 . . . 2 76 8 . 7 2 1 19 1 . 36 39 . 18 . 3 25 90 230 60 283 34 159 Launcher 435 | . . . 3 2 . 4 6 59 6 31 6 . 7 24 5 5 7 8 46 29 4 . 11 14 19 20 . 18 6 35 21 6 3 . 30 Special 63 | . . . . . . . . . . 3 . . 1 3 . . . . . . 30 . 8 4 . 14 . . . . . . . . . Kinetic 684 | 4 114 6 26 . . . . . . . . . . . 18 . . . 117 12 . . 9 16 . 6 . 2 30 51 29 34 139 6 65 Thermal 643 | . 30 11 137 4 . 17 118 121 18 3 . . 3 66 2 . 7 2 1 2 30 . 14 4 . 15 . 1 11 16 4 6 . . . Explosive 15 | . . . 3 2 . 4 6 . . . . . . . . . . . . . . . . . . . . . . . . . . . . Electromagnetic 1124 | . . . . . . . 14 70 6 32 6 . 7 37 11 5 7 8 46 46 5 . 41 53 19 37 . 31 20 81 218 26 147 28 123 Robot Hit Streak 48 | 2 18 10 18 6 . 5 15 24 13 11 . . 4 17 6 . . 1 18 12 7 . 14 15 7 24 . 12 10 13 48 37 47 14 28 Robot Miss Streak 5 | 1 4 2 5 . . 4 3 3 2 1 1 . 2 3 2 . . . 3 1 1 . 2 2 . 2 . 2 2 4 3 1 4 1 2 Penetration Max 1 | . . . . . . . . . . . . . . . . . . . . . . . . . . . . . 1 1 . . . . . Secondary Targets 2 | . . . . . . . . . . . . . . . . . . . 1 . . . . . . . . . . 1 . . . . . Max Gunslinging Chain 1 | . . . . . . . . . . . . . . . . . . . 1 . . . . . . . . . . 1 . . . . . Capacitor 59 | . . . . . . . . . . . . . . . . . . . . . . . . . . . . . . 47 12 . . . . Shots Hit Robots 1815 | 2 101 12 105 5 . 13 91 137 17 20 . . 6 63 18 . . 1 100 39 36 10 40 55 5 37 . 24 41 135 217 56 243 28 158 Core Hits 1329 | 2 47 3 56 9 . 13 57 224 11 15 2 . 12 38 12 2 . 10 96 28 14 3 26 47 25 49 . 36 18 79 112 46 102 18 117 Critical Hits 77 | . 2 . 16 1 . 1 10 15 . . . . . 5 . . . . 3 . . . . . . . . . 2 2 10 2 5 . 3 Critical Kills 27 | . . . 7 . . 1 6 4 . . . . . 2 . . . . 1 . . . . . . . . . 2 . 3 . . . 1 Critical Parts Destroyed 43 | . 2 . 9 1 . . 4 9 . . . . . 3 . . . . . . . . . . . . . . . 2 4 2 5 . 2 Melee Attacks 151 | . . . 2 . . . . 18 . 4 . . 14 . . . 4 . . . 9 10 2 3 2 9 . . 1 40 29 2 1 1 . Kinetic 1 | . . . . . . . . . . . . . . . . . . . . . . . . . . . . . . . 1 . . . . Impact . | . . . . . . . . . . . . . . . . . . . . . . . . . . . . . . . . . . . . Slashing 34 | . . . . . . . . 18 . 4 . . 12 . . . . . . . . . . . . . . . . . . . . . . Piercing 95 | . . . . . . . . . . . . . . . . . 4 . . . . 10 . . . 9 . . 1 40 28 2 1 . . Sneak Attacks 31 | . . . 2 . . . . 6 . 3 . . 2 . . . . . . . 8 . 2 3 2 . . . 1 . 1 . . 1 . Combat Hostiles 8 | . . . . . . . . . . . . . . . . . . . . . . . . 3 2 . . . 1 . 1 . . 1 . Follow-up Attacks 3 | . . . . . . . . . . . . . . . . . . . . . . . . . . . . . . 3 . . . . . Damage Inflicted 97839 | 26 908 147 2379 393 . 750 2642 14569 844 1590 280 . 751 2771 710 105 . 497 5894 1811 505 1044 1374 3596 1904 2241 . 1522 1304 6395 11645 3890 11892 1417 12043 Guns 5462 | 26 879 147 468 . . . 148 118 . 13 . . . . 207 . . . 2051 . . . 22 281 . 23 . 121 695 263 . . . . . Cannons 41796 | . . . 1688 81 . 227 1832 1814 286 . . . . 1418 129 . . . . 520 30 . 758 1454 . 425 . 61 376 2239 7782 2809 10749 1177 5941 Explosions 44097 | . . . 214 292 . 523 662 11891 552 1172 280 . 739 1186 374 105 . 497 3816 1291 180 . 503 1771 1904 1409 . 1340 233 2277 2793 994 1039 147 5913 Melee 5062 | . . . . . . . . 734 . 370 . . . . . . . . . . . 1044 . . . 228 . . . 1616 1070 . . . . Ramming 753 | . 29 . 9 20 . . . 12 6 . . . . 131 . . . . 27 . . . . 46 . . . . . . . 87 104 93 189 Kinetic 18315 | 26 631 43 320 . . . . . . . . . . . 207 . . . 2051 . . . 22 281 . 23 . . 695 820 2291 1983 6223 102 2597 Thermal 19314 | . 248 104 1836 81 . 227 1832 5651 286 117 . . 185 1254 67 . . 105 398 284 295 . 91 687 414 410 . 388 . 731 774 127 842 147 1733 Explosive 2115 | . . . 214 292 . 523 662 170 . . . . . . . . . . 254 . . . . . . . . . . . . . . . . Electromagnetic 52372 | . . . . . . . 148 8002 552 1103 280 . 566 1386 436 105 . 392 3164 1527 210 . 1261 2582 1490 1580 . 1134 609 3228 7602 1693 4723 1075 7524 Impact . | . . . . . . . . . . . . . . . . . . . . . . . . . . . . . . . . . . . . Slashing 1104 | . . . . . . . . 734 . 370 . . . . . . . . . . . . . . . . . . . . . . . . . Piercing 3866 | . . . . . . . . . . . . . . . . . . . . . . 1044 . . . 228 . . . 1616 978 . . . . Highest Corruption 23 | . 3 3 . . . . . 1 3 4 4 4 4 6 3 . . . 16 14 1 . 1 . 1 . . . 5 23 7 . . . . Average Corruption 4 | . 2 3 . . . . . 1 2 3 4 4 4 3 1 . . . 11 5 1 . 1 . 1 . . . 2 7 3 . . . . Corruption Purged 73 | . . . . . . . . . . . . . . 6 4 . . . 3 15 1 . 1 . 2 . . . 5 23 13 . . . . Effects 342 | . 5 5 . . . . . 13 12 23 16 2 16 37 1 . . . 58 29 . . . . 4 . . . 11 71 39 . . . . Message Errors 93 | . 1 . . . . . . 9 5 4 2 . 4 17 . . . . 15 8 . . . . 2 . . . 1 13 12 . . . . Matter Fused 70 | . 1 3 . . . . . . . 9 3 1 6 7 . . . . 7 4 . . . . . . . . 4 19 6 . . . . Heat Flow Errors 32 | . . 1 . . . . . . 3 3 3 . . 4 1 . . . 3 3 . . . . . . . . 2 8 1 . . . . Energy Discharges 37 | . 2 1 . . . . . 2 2 2 3 . 1 4 . . . . 4 2 . . . . 1 . . . 1 9 3 . . . . Parts Rejected 2 | . . . . . . . . . . . . . . . . . . . 1 . . . . . . . . . . . 1 . . . . Data Loss (minor) 49 | . 1 . . . . . . 2 1 4 5 1 5 2 . . . . 2 9 . . . . 1 . . . 2 9 5 . . . . Data Loss (major) 8 | . . . . . . . . . . . . . . . . . . . 1 2 . . . . . . . . . 1 4 . . . . Misfires 5 | . . . . . . . . . . . . . . . . . . . 2 . . . . . . . . . . 3 . . . . . Alerts 1 | . . . . . . . . . . . . . . . . . . . . 1 . . . . . . . . . . . . . . . Misdirections 7 | . . . . . . . . . . . . . . . . . . . 4 . . . . . . . . . . 3 . . . . . Targeting Errors 35 | . . . . . . . . . 1 1 . . . 3 . . . . 17 . . . . . . . . . 1 6 6 . . . . Weapon Failures 3 | . . . . . . . . . . . . . . . . . . . 2 . . . . . . . . . . . 1 . . . . Overload Shots . | . . . . . . . . . . . . . . . . . . . . . . . . . . . . . . . . . . . . Overflow Damage 3814 | . . . 29 . . 4 101 593 41 206 . . 3 193 9 . . . 93 99 31 118 66 179 7 108 . . 30 66 522 144 686 58 428 Projectiles 1813 | . . . 29 . . 4 28 . . . . . . 65 . . . . . 92 31 . 51 122 . 7 . . 30 35 319 114 591 18 277 Explosions 1256 | . . . . . . . 73 298 41 20 . . 3 42 9 . . . 93 7 . . 15 54 7 101 . . . 31 186 30 95 . 151 Melee 745 | . . . . . . . . 295 . 186 . . . 86 . . . . . . . 118 . 3 . . . . . . 17 . . 40 . Knockbacks 154 | . . . 2 . . . . . . . . . . 1 . . . . . . . . . 1 . . . . . 19 27 14 56 1 33 Impact 4 | . . . . . . . . . . . . . . 1 . . . . . . . . . 1 . . . . . . . . . 1 1 Kinetic 140 | . . . 2 . . . . . . . . . . . . . . . . . . . . . . . . . . 19 26 12 52 . 29 Secondary 10 | . . . . . . . . . . . . . . . . . . . . . . . . . . . . . . . 1 2 4 . 3 Self-Inflicted Damage 1700 | . . . . . . 97 . 103 . 144 46 . 41 35 53 . . . 85 51 59 . 71 36 96 38 . 83 . 116 153 16 249 . 128 Shots 69 | . . . . . . 4 . 5 . 7 3 . 2 2 3 . . . 4 3 3 . 3 2 6 2 . 4 . 4 3 2 3 . 4 Rammed 33 | . 3 . 1 2 . . . 2 1 . . . . 2 . . . . 1 . . . . 2 . . . . . . . . 2 2 15 Targets Rammed 36 | . 3 . 2 2 . . . 2 1 . . . . 2 . . . . 1 . . . . 3 . . . . . . . 1 2 2 15 Kicked . | . . . . . . . . . . . . . . . . . . . . . . . . . . . . . . . . . . . . Crushed 3 | . . . 1 . . . . . . . . . . . . . . . . . . . . 1 . . . . . . . 1 . . . Highest Temperature 480 | . 238 200 480 64 . 242 359 108 189 190 157 . 4 345 147 . 4 24 445 228 . . 82 7 247 8 . . 246 368 20 19 36 . . Average Temperature 77 | . 65 69 83 25 . 102 97 28 55 92 78 . 2 67 47 . 1 15 170 95 . . 47 4 152 4 . . 61 99 7 17 22 . . Received Heat Transfer 5194 | . 279 18 306 15 . 54 603 396 72 45 9 . . 54 . . . . 609 27 12 . 132 141 72 84 . 18 117 248 745 180 148 . 810 Effects 12 | . . . 3 . . 1 7 . . . . . . . . . . . 1 . . . . . . . . . . . . . . . . Energy Bleed 5 | . . . 2 . . . 2 . . . . . . . . . . . 1 . . . . . . . . . . . . . . . . Interference 5 | . . . . . . 1 4 . . . . . . . . . . . . . . . . . . . . . . . . . . . . Short Circuit 1 | . . . 1 . . . . . . . . . . . . . . . . . . . . . . . . . . . . . . . . Damage (minor) 1 | . . . . . . . 1 . . . . . . . . . . . . . . . . . . . . . . . . . . . . Siege Activations 31 | . . . . . . . . . . . . . . . . . . . . . . . . . . . . . . 2 7 3 11 2 6 Total Turns 794 | . . . . . . . . . . . . . . . . . . . . . . . . . . . . . . 22 163 80 291 28 210 Longest Duration 72 | . . . . . . . . . . . . . . . . . . . . . . . . . . . . . . 18 37 72 57 27 62 Robots Corrupted 197 | . . . . . . . . 15 2 6 2 . 2 4 4 . . 1 5 3 . . 6 12 4 3 . 4 3 21 35 10 19 1 35 Combat Hostiles 179 | . . . . . . . . 15 2 6 2 . 1 3 4 . . 1 4 3 . . 6 8 4 1 . 4 3 19 34 9 18 1 31 Parts Fried 435 | . . . . . . . . 37 . 12 5 . 3 14 5 2 . 2 22 2 . . 13 29 9 8 . 5 6 36 69 20 39 11 86 Impact Corruptions 5 | . . . . . . . . . . . . . . 3 . . . . . . . . . 1 . . . . . . . . . 1 . Robots Melted 3 | . . . . . . . . . . . . . . 1 . . . . . . 1 . . . . . . . . 1 . . . . . Combat Hostiles 2 | . . . . . . . . . . . . . . . . . . . . . 1 . . . . . . . . 1 . . . . . Parts Melted 59 | . 1 2 3 . . 1 . 15 . 1 . . . 9 . . . 1 . . . . 1 1 . 3 . . 9 9 1 . 1 . 1 Heat Transferred 29966 | . 740 259 3256 148 . 407 3256 8361 444 340 . . 380 2129 100 . . 150 750 250 2160 . 640 745 450 1370 . 350 . 520 450 111 550 150 1500 Parts Sabotaged 2 | . . . . . . . . . . . . . . . . . . . . . . . . . . . . . . . 1 . 1 . . Parts Stolen . | . . . . . . . . . . . . . . . . . . . . . . . . . . . . . . . . . . . . Parts Stripped . | . . . . . . . . . . . . . . . . . . . . . . . . . . . . . . . . . . . . Power Chain Reactions 121 | . . . . . . . . 47 . 3 . . 3 7 1 . 2 3 9 6 . . 1 4 3 5 . 4 . 3 4 1 4 1 10 Missiles Intercepted . | . . . . . . . . . . . . . . . . . . . . . . . . . . . . . . . . . . . . Alert | -11 -10 -10 -9 -9 -9 -8 -8 -8 -7 -7 -7 -7 -6 -6 -6 -6 -6 -5 -5 -5 -5 -5 -4 -4 -4 -4 -4 -3 -3 -3 -3 -2 -2 -1 -1 ------- Run | Scr Mat Min Mat Min Exi Min Mat Sto Fac Low Low Dat Pro Fac Low Low Zio Pro Fac Upp Upp Zhi Pro Fac Upp Upp War Pro Res Qua Sec Res Tes Acc Com Peak Influence 2850 | 5 301 20 567 353 . 224 435 2850 1391 . . . . 334 . . . . 873 . . . . 791 . . . . 182 800 1996 1555 2047 1771 2716 Initial 1296 | . 3 3 7 218 . . . 61 1296 . . . . 94 . . . . . . . . . 47 . . . . . 37 450 1122 720 1228 1054 Average 611 | . 87 17 204 262 . 80 212 1012 1281 . . . . 151 . . . . 384 . . . . 544 . . . . 72 490 995 1330 1135 1486 1914 Maximum Alert Level 5 | . 1 . 2 1 . 1 2 5 4 . . . . 1 . . . . 3 . . . . 3 . . . . . 3 5 4 5 5 5 Low Security (%) 29 | 100 90 100 65 50 . 78 47 1 . . . . . 57 . . . . 38 . . . . 2 . . . . 100 7 . . . . . Level 1 15 | . 9 . 11 49 . 21 46 3 . . . . . 42 . . . . 5 . . . . 15 . . . . . 24 . . . . . Level 2 20 | . . . 23 . . . 5 29 . . . . . . . . . . 39 . . . . 75 . . . . . 45 26 . 6 . . Level 3 15 | . . . . . . . . 37 . . . . . . . . . . 16 . . . . 6 . . . . . 22 43 . 39 . 4 Level 4 12 | . . . . . . . . 14 100 . . . . . . . . . . . . . . . . . . . . . 16 100 34 53 30 Level 5 3 | . . . . . . . . 5 . . . . . . . . . . . . . . . . . . . . . . 14 . 18 46 4 High Security 2 | . . . . . . . . 7 . . . . . . . . . . . . . . . . . . . . . . . . . . 60 Max Security . | . . . . . . . . . . . . . . . . . . . . . . . . . . . . . . . . . . . . Sterilizations 1 | . . . . . . . . 1 . . . . . . . . . . . . . . . . . . . . . . . . . . . Squads Dispatched 155 | . 4 . 6 . . . 4 25 3 . . . . 7 . . . . 8 . . . . 8 . . . . 5 3 24 10 17 5 26 Investigation 18 | . 2 . 3 . . . 4 1 1 . . . . 1 . . . . 1 . . . . 1 . . . . 1 1 2 . . . . Extermination 28 | . . . . . . . . . 1 . . . . 5 . . . . 2 . . . . 1 . . . . 2 2 4 2 7 1 1 Reinforcement 28 | . 2 . 3 . . . . 2 . . . . . 1 . . . . 4 . . . . 2 . . . . 2 . 7 . 3 2 . Assault 73 | . . . . . . . . 21 1 . . . . . . . . . 1 . . . . 3 . . . . . . 8 5 7 2 25 Garrison 8 | . . . . . . . . 1 . . . . . . . . . . . . . . . 1 . . . . . . 3 3 . . . Intercept . | . . . . . . . . . . . . . . . . . . . . . . . . . . . . . . . . . . . . Construction Impeded 12 | . . . . . . . . 2 . . . . . . . . . . 1 . . . . 2 . . . . 1 . 4 . 1 1 . Haulers Reinforced 4 | . . . . . . . . . . . . . . . . . . . 3 . . . . . . . . . . . . . . 1 . Stealth | -11 -10 -10 -9 -9 -9 -8 -8 -8 -7 -7 -7 -7 -6 -6 -6 -6 -6 -5 -5 -5 -5 -5 -4 -4 -4 -4 -4 -3 -3 -3 -3 -2 -2 -1 -1 --------- Run | Scr Mat Min Mat Min Exi Min Mat Sto Fac Low Low Dat Pro Fac Low Low Zio Pro Fac Upp Upp Zhi Pro Fac Upp Upp War Pro Res Qua Sec Res Tes Acc Com Distress Signals 34 | . 1 . 2 . . . 6 5 . . . . . . . . . . . . . . . 1 . . . . . 1 11 1 3 . 3 Communications Jammed . | . . . . . . . . . . . . . . . . . . . . . . . . . . . . . . . . . . . . Distress Signals . | . . . . . . . . . . . . . . . . . . . . . . . . . . . . . . . . . . . . Times Spotted 1041 | . 36 2 70 7 . 8 49 162 13 12 3 . 8 25 10 1 . 4 46 15 6 . 14 37 13 14 . 18 17 45 141 27 88 19 131 Peak Tracking Total 30 | . 3 2 6 4 . 4 4 19 4 4 3 . 4 4 5 1 . 2 7 9 5 . 4 5 7 4 . 5 5 4 17 8 9 3 30 Tactical Retreats 65 | . 4 . 10 . . . 1 2 . 1 . . . 1 . 3 . . 1 3 . . 3 3 . 1 . 1 . 7 14 . 9 . 1 Traps | -11 -10 -10 -9 -9 -9 -8 -8 -8 -7 -7 -7 -7 -6 -6 -6 -6 -6 -5 -5 -5 -5 -5 -4 -4 -4 -4 -4 -3 -3 -3 -3 -2 -2 -1 -1 ------- Run | Scr Mat Min Mat Min Exi Min Mat Sto Fac Low Low Dat Pro Fac Low Low Zio Pro Fac Upp Upp Zhi Pro Fac Upp Upp War Pro Res Qua Sec Res Tes Acc Com Traps Triggered 25 | . 4 . . . . . 1 . . . . . . 5 . . . . 8 1 . . . . . . . . 2 1 1 . 1 . 1 Indirectly 8 | . . . . . . . . . . . . . . 1 . . . . 5 . . . . . . . . . . 1 . . . . 1 Trap Hack Attempts 139 | . . . 39 . . . 38 27 . . . . . 10 . . . . . . . . . . . . . . . 17 8 . . . . Triggered 2 | . . . . . . . . . . . . . . 1 . . . . . . . . . . . . . . . . 1 . . . . Disarmed 8 | . 6 . 1 . . . . . . . . . . . . . . . . . . . . . . . . . . 1 . . . . . Reprogrammed 28 | . . . 13 . . . 4 6 . . . . . 2 . . . . . . . . . . . . . . . 3 . . . . . Reused 47 | . . . 1 . . . 1 2 . . . . . 2 3 . . . 2 2 1 . 4 2 . 2 . 2 4 8 6 . 1 . 4 Traps Extracted 30 | . . . . . . . . . . . . . . 2 3 . . . . 4 . . 2 . 2 2 . 2 1 9 3 . . . . Installed 80 | . . . . . . . . . . . . . . 5 6 . . . 4 5 1 . 8 4 1 3 . 4 7 16 9 . 3 . 4 Triggered 50 | . . . 1 . . . 1 2 . . 2 . . 2 3 . . . 2 2 1 . 5 2 . 2 . 2 4 8 6 . 1 . 4 Machines | -11 -10 -10 -9 -9 -9 -8 -8 -8 -7 -7 -7 -7 -6 -6 -6 -6 -6 -5 -5 -5 -5 -5 -4 -4 -4 -4 -4 -3 -3 -3 -3 -2 -2 -1 -1 ---------- Run | Scr Mat Min Mat Min Exi Min Mat Sto Fac Low Low Dat Pro Fac Low Low Zio Pro Fac Upp Upp Zhi Pro Fac Upp Upp War Pro Res Qua Sec Res Tes Acc Com Machines Disabled 68 | . . 1 . 2 . 1 4 14 . . . . 1 2 1 . . . 4 . . . . 6 2 . . . . 12 8 1 4 1 4 Max in Single Turn 4 | . . 1 . 2 . 1 1 2 . . . . 1 2 1 . . . 2 . . . . 4 1 . . . . 2 1 1 1 . 1 Garrison Access 4 | . . . . . . . 1 1 . . . . . . . . . . . . . . . 1 . . . . . 1 . . . . . Machines Sabotaged . | . . . . . . . . . . . . . . . . . . . . . . . . . . . . . . . . . . . . Garrisons Compromised . | . . . . . . . . . . . . . . . . . . . . . . . . . . . . . . . . . . . . Overloaded Fab Kills . | . . . . . . . . . . . . . . . . . . . . . . . . . . . . . . . . . . . . Fab Network Shutdowns . | . . . . . . . . . . . . . . . . . . . . . . . . . . . . . . . . . . . . Hacking | -11 -10 -10 -9 -9 -9 -8 -8 -8 -7 -7 -7 -7 -6 -6 -6 -6 -6 -5 -5 -5 -5 -5 -4 -4 -4 -4 -4 -3 -3 -3 -3 -2 -2 -1 -1 --------- Run | Scr Mat Min Mat Min Exi Min Mat Sto Fac Low Low Dat Pro Fac Low Low Zio Pro Fac Upp Upp Zhi Pro Fac Upp Upp War Pro Res Qua Sec Res Tes Acc Com Machines Accessed 119 | . 8 . 15 . 1 . 7 15 4 . . 4 . 11 . 1 . . 6 . . 4 . 6 . 1 1 . 3 15 10 1 5 1 . Terminals 61 | . 5 . 9 . . . 6 10 2 . . . . 4 . . . . 3 . . . . 2 . . . . 2 9 7 . 2 . . Fabricators 4 | . . . . . . . . . . . . . . 1 . . . . 1 . . . . 1 . . . . . . . . 1 . . Repair Stations 18 | . 1 . 2 . . . . 2 1 . . . . 4 . . . . . . . . . . . . . . 1 2 2 1 1 1 . Recycling Units 11 | . 2 . 2 . . . . 2 1 . . . . 1 . . . . 1 . . . . 2 . . . . . . . . . . . Scanalyzers 9 | . . . 2 . . . . . . . . . . 1 . . . . 1 . . . . . . . . . . 3 1 . 1 . . Garrison Access 4 | . . . . . . . 1 1 . . . . . . . . . . . . . . . 1 . . . . . 1 . . . . . Total Hacks 366 | . 29 . 50 . 1 . 22 40 8 . . 24 . 49 . 1 . . 22 . . 17 . 15 . 1 1 . 7 38 23 2 14 2 . Successful 227 | . 20 . 37 . 1 . 8 27 1 . . 24 . 36 . 1 . . 10 . . 17 . 11 . 1 1 . 2 12 9 2 7 . . Failed 138 | . 8 . 13 . . . 14 13 7 . . . . 13 . . . . 12 . . . . 4 . . . . 5 26 14 . 7 2 . Catastrophic 24 | . 2 . 1 . . . 5 2 2 . . . . 1 . . . . 3 . . . . . . . . . . 5 2 . 1 . . Database Lockouts 1 | . 1 . . . . . . . . . . . . . . . . . . . . . . . . . . . . . . . . . . Manual 146 | . 20 . 16 . . . 18 25 2 . . . . 11 . . . . 13 . . . . 9 . . . . 3 17 4 . 8 . . Terminals 172 | . 21 . 28 . . . 19 26 5 . . . . 11 . . . . 13 . . . . 4 . . . . 5 21 15 . 4 . . Fabricators 21 | . . . . . . . . . . . . . . 10 . . . . 2 . . . . 4 . . . . . . . . 5 . . Repair Stations 61 | . 4 . 6 . . . . 6 1 . . . . 24 . . . . . . . . . . . . . . 2 6 4 2 4 2 . Recycling Units 25 | . 4 . 4 . . . . 5 2 . . . . 2 . . . . 2 . . . . 6 . . . . . . . . . . . Scanalyzers 34 | . . . 12 . . . . . . . . . . 2 . . . . 5 . . . . . . . . . . 10 4 . 1 . . Garrison Access 8 | . . . . . . . 3 3 . . . . . . . . . . . . . . . 1 . . . . . 1 . . . . . Terminal Hacks 95 | . 7 . 13 . 1 . 5 12 . . . 24 . 3 . 1 . . 4 . . 17 . 1 . 1 1 . . 1 4 . . . . Record 17 | . . . . . 1 . . . . . . 11 . . . . . . . . . 5 . . . . . . . . . . . . . Part Schematic 10 | . 1 . 1 . . . . . . . . 3 . . . . . . 1 . . 4 . . . . . . . . . . . . . Robot Schematic 8 | . . . . . . . 1 . . . . 7 . . . . . . . . . . . . . . . . . . . . . . . Robot Analysis 9 | . . . 1 . . . . 4 . . . . . . . . . . . . . 4 . . . . . . . . . . . . . Prototype ID Bank 9 | . . . 2 . . . . . . . . 3 . . . . . . . . . 4 . . . . . . . . . . . . . Open Door 6 | . . . . . . . . 3 . . . . . . . 1 . . . . . . . . . 1 1 . . . . . . . . Branch Access Points 4 | . . . 1 . . . . . . . . . . 1 . . . . 1 . . . . 1 . . . . . . . . . . . Terminal Index 1 | . . . . . . . . . . . . . . . . . . . 1 . . . . . . . . . . . . . . . . Fabricator Index 1 | . . . . . . . . . . . . . . . . . . . 1 . . . . . . . . . . . . . . . . Alert Level 3 | . . . . . . . 1 1 . . . . . . . . . . . . . . . . . . . . . 1 . . . . . Unreport Threat 9 | . 2 . 1 . . . 2 1 . . . . . 1 . . . . . . . . . . . . . . . . 2 . . . . Locate Traps 7 | . 1 . 3 . . . 1 1 . . . . . 1 . . . . . . . . . . . . . . . . . . . . . Disarm Traps 1 | . 1 . . . . . . . . . . . . . . . . . . . . . . . . . . . . . . . . . . Reprogram Traps 3 | . . . 2 . . . . 1 . . . . . . . . . . . . . . . . . . . . . . . . . . . Hauler Manifests 2 | . 1 . 1 . . . . . . . . . . . . . . . . . . . . . . . . . . . . . . . . Registered Components 1 | . 1 . . . . . . . . . . . . . . . . . . . . . . . . . . . . . . . . . . Zone Layout 4 | . . . 1 . . . . 1 . . . . . . . . . . . . . . . . . . . . . . 2 . . . . Fabricator Hacks 8 | . . . . . . . . . . . . . . 4 . . . . . . . . . 2 . . . . . . . . 2 . . Load Schematic 4 | . . . . . . . . . . . . . . 2 . . . . . . . . . 1 . . . . . . . . 1 . . Build 4 | . . . . . . . . . . . . . . 2 . . . . . . . . . 1 . . . . . . . . 1 . . Repair Station Hacks 44 | . 4 . 6 . . . . 4 . . . . . 20 . . . . . . . . . . . . . . 1 4 1 2 2 . . Scan Component 24 | . 2 . 3 . . . . 2 . . . . . 11 . . . . . . . . . . . . . . 1 2 1 1 1 . . Repair 20 | . 2 . 3 . . . . 2 . . . . . 9 . . . . . . . . . . . . . . . 2 . 1 1 . . Recycling Unit Hacks 9 | . 2 . 2 . . . . 2 . . . . . 1 . . . . . . . . . 2 . . . . . . . . . . . Retrieve Components 9 | . 2 . 2 . . . . 2 . . . . . 1 . . . . . . . . . 2 . . . . . . . . . . . Scanalyzer 24 | . . . 12 . . . . . . . . . . 1 . . . . 5 . . . . . . . . . . 3 3 . . . . Insert Component 14 | . . . 5 . . . . . . . . . . 1 . . . . 2 . . . . . . . . . . 3 3 . . . . Analyze 10 | . . . 7 . . . . . . . . . . . . . . . 3 . . . . . . . . . . . . . . . . Garrison Access Hacks 1 | . . . . . . . . . . . . . . . . . . . . . . . . 1 . . . . . . . . . . . Seal Access 1 | . . . . . . . . . . . . . . . . . . . . . . . . 1 . . . . . . . . . . . Unauthorized Hacks 46 | . 7 . 4 . . . 3 9 1 . . . . 7 . . . . 1 . . . . 5 . . . . 1 4 1 . 3 . . Terminals 29 | . 5 . 2 . . . 2 7 1 . . . . 4 . . . . 1 . . . . 1 . . . . 1 3 1 . 1 . . Track 6 | . 1 . . . . . . 2 . . . . . 2 . . . . . . . . . . . . . . . . . . 1 . . Assimilate 4 | . . . . . . . . 2 . . . . . . . . . . . . . . . . . . . . . 2 . . . . . Botnet 16 | . 2 . 2 . . . 2 2 1 . . . . 2 . . . . 1 . . . . 1 . . . . 1 1 1 . . . . Operators 3 | . 2 . . . . . . 1 . . . . . . . . . . . . . . . . . . . . . . . . . . . Fabricators 6 | . . . . . . . . . . . . . . 2 . . . . . . . . . 2 . . . . . . . . 2 . . Report 1 | . . . . . . . . . . . . . . . . . . . . . . . . 1 . . . . . . . . . . . Prioritize 2 | . . . . . . . . . . . . . . 1 . . . . . . . . . . . . . . . . . . 1 . . Siphon 3 | . . . . . . . . . . . . . . 1 . . . . . . . . . 1 . . . . . . . . 1 . . Repair Stations . | . . . . . . . . . . . . . . . . . . . . . . . . . . . . . . . . . . . . Recycling Units 8 | . 2 . 2 . . . . 1 . . . . . 1 . . . . . . . . . 2 . . . . . . . . . . . Mask 4 | . . . . . . . . 1 . . . . . 1 . . . . . . . . . 2 . . . . . . . . . . . Tunnel 4 | . 2 . 2 . . . . . . . . . . . . . . . . . . . . . . . . . . . . . . . . Scanalyzers . | . . . . . . . . . . . . . . . . . . . . . . . . . . . . . . . . . . . . Garrison Access 3 | . . . . . . . 1 1 . . . . . . . . . . . . . . . . . . . . . 1 . . . . . Jam 3 | . . . . . . . 1 1 . . . . . . . . . . . . . . . . . . . . . 1 . . . . . Data Cores Recovered 3 | . . . 2 . . . . 1 . . . . . . . . . . . . . . . . . . . . . . . . . . . Used . | . . . . . . . . . . . . . . . . . . . . . . . . . . . . . . . . . . . . Hacking Detections 91 | . 6 . 13 . . . 7 11 4 . . . . 11 . . . . 6 . . . . 4 . . . . 3 13 8 1 3 1 . Full Trace Events 10 | . 1 . 1 . . . 2 2 1 . . . . 1 . . . . 1 . . . . . . . . . . . 1 . . . . Feedback Events 2 | . . . . . . . . 1 . . . . . . . . . . . . . . . . . . . . . . 1 . . . . Corruption 2 | . . . . . . . . 1 . . . . . . . . . . . . . . . . . . . . . . 1 . . . . Feedback Blocked . | . . . . . . . . . . . . . . . . . . . . . . . . . . . . . . . . . . . . Robot Schematics Acquired 8 | . . . . . . . 1 . . . . 7 . . . . . . . . . . . . . . . . . . . . . . . Robots Built . | . . . . . . . . . . . . . . . . . . . . . . . . . . . . . . . . . . . . Matter . | . . . . . . . . . . . . . . . . . . . . . . . . . . . . . . . . . . . . Time . | . . . . . . . . . . . . . . . . . . . . . . . . . . . . . . . . . . . . Total Robot Build Rating . | . . . . . . . . . . . . . . . . . . . . . . . . . . . . . . . . . . . . Part Schematics Acquired 17 | . 1 . 6 . . . . . . . . 3 . . . . . . 3 . . 4 . . . . . . . . . . . . . Parts Built 5 | . . . . . . . . . . . . . . 3 . . . . . . . . . 1 . . . . . . . . 1 . . Matter 732 | . . . . . . . . . . . . . . 306 . . . . . . . . . 213 . . . . . . . . 213 . . Time 411 | . . . . . . . . . . . . . . 183 . . . . . . . . . 76 . . . . . . . . 152 . . Total Part Build Rating 19 | . . . . . . . . . . . . . . 9 . . . . . . . . . 5 . . . . . . . . 5 . . Parts Repaired 20 | . 2 . 3 . . . . 2 . . . . . 9 . . . . . . . . . . . . . . . 2 . 1 1 . . Time 779 | . 52 . 109 . . . . 39 . . . . . 394 . . . . . . . . . . . . . . . 52 . 44 89 . . Parts Recycled . | . . . . . . . . . . . . . . . . . . . . . . . . . . . . . . . . . . . . Recycled Matter . | . . . . . . . . . . . . . . . . . . . . . . . . . . . . . . . . . . . . Retrieved Matter . | . . . . . . . . . . . . . . . . . . . . . . . . . . . . . . . . . . . . Retrieved Components 65 | . 15 . 20 . . . . 10 . . . . . . . . . . . . . . . 20 . . . . . . . . . . . Parts Scanalyzed 8 | . . . 5 . . . . . . . . . . 1 . . . . 2 . . . . . . . . . . . . . . . . Part Schematics Acquired 7 | . . . 5 . . . . . . . . . . . . . . . 2 . . . . . . . . . . . . . . . . Parts Damaged 1 | . . . 1 . . . . . . . . . . . . . . . . . . . . . . . . . . . . . . . . Bothacking | -11 -10 -10 -9 -9 -9 -8 -8 -8 -7 -7 -7 -7 -6 -6 -6 -6 -6 -5 -5 -5 -5 -5 -4 -4 -4 -4 -4 -3 -3 -3 -3 -2 -2 -1 -1 ------------ Run | Scr Mat Min Mat Min Exi Min Mat Sto Fac Low Low Dat Pro Fac Low Low Zio Pro Fac Upp Upp Zhi Pro Fac Upp Upp War Pro Res Qua Sec Res Tes Acc Com Used RIF Installer . | . . . . . . . . . . . . . . . . . . . . . . . . . . . . . . . . . . . . Robots Hacked 1 | . . . 1 . . . . . . . . . . . . . . . . . . . . . . . . . . . . . . . . Non-combat 1 | . . . 1 . . . . . . . . . . . . . . . . . . . . . . . . . . . . . . . . Combat . | . . . . . . . . . . . . . . . . . . . . . . . . . . . . . . . . . . . . Robot Hacks Applied 2 | . . . 2 . . . . . . . . . . . . . . . . . . . . . . . . . . . . . . . . parse_system 2 | . . . 2 . . . . . . . . . . . . . . . . . . . . . . . . . . . . . . . . Relay Couplers Released 4 | . . . . . . . . . . . . . . . . . . . 4 . . . . . . . . . . . . . . . . Programmers 4 | . . . . . . . . . . . . . . . . . . . 4 . . . . . . . . . . . . . . . . Robots Rewired 11 | . . . . . . . . . . . . . 1 . 1 . . . . . 3 . 1 1 3 . . . . . . . . 1 . Allies Hacked . | . . . . . . . . . . . . . . . . . . . . . . . . . . . . . . . . . . . . Hacks Repelled . | . . . . . . . . . . . . . . . . . . . . . . . . . . . . . . . . . . . . Allies | -11 -10 -10 -9 -9 -9 -8 -8 -8 -7 -7 -7 -7 -6 -6 -6 -6 -6 -5 -5 -5 -5 -5 -4 -4 -4 -4 -4 -3 -3 -3 -3 -2 -2 -1 -1 -------- Run | Scr Mat Min Mat Min Exi Min Mat Sto Fac Low Low Dat Pro Fac Low Low Zio Pro Fac Upp Upp Zhi Pro Fac Upp Upp War Pro Res Qua Sec Res Tes Acc Com Total Allies 36 | . . . . 3 . . . 13 . . . . 2 . 1 . 3 1 . . 3 . 1 1 3 . . . . 1 . . . 4 . Largest Group 12 | . . . . 3 2 . . 12 1 . . . 2 2 1 1 4 4 3 . 3 2 3 2 2 1 . . . 1 . . . 4 . Highest-Rated Group 398 | . . . . 79 48 . . 214 10 . . . 117 117 30 30 120 120 78 . 38 27 59 64 94 56 . . . 26 . . . 398 . Highest-Rated Ally 131 | . . . . 31 31 . . 31 10 . . . 94 94 30 30 42 42 30 . 15 15 29 49 56 56 . . . 26 . . . 131 . Total Orders 108 | . . . . . . . . 19 3 . . . 2 18 4 5 2 . . . 6 2 19 11 . . . . . 8 1 3 1 3 1 STAY 51 | . . . . . . . . 13 . . . . 1 11 3 2 1 . . . 3 1 7 6 . . . . . 3 . . . . . FOLLOW 33 | . . . . . . . . 5 . . . . 1 7 1 1 1 . . . 2 1 7 4 . . . . . 3 . . . . . DROP 3 | . . . . . . . . . . . . . . . . . . . . . . . 2 1 . . . . . . . . . . . PICKUP 3 | . . . . . . . . . . . . . . . . . . . . . 1 . 2 . . . . . . . . . . . . COLLECT 1 | . . . . . . . . . . . . . . . . . . . . . . . 1 . . . . . . . . . . . . EXPLORE 6 | . . . . . . . . 1 3 . . . . . . 2 . . . . . . . . . . . . . . . . . . . RETURN 11 | . . . . . . . . . . . . . . . . . . . . . . . . . . . . . . 2 1 3 1 3 1 Ally Attacks 173 | . . . . 2 . . . 70 . . . . 3 11 1 . . 11 . . . . . 16 12 . . . . . . . . 47 . Total Damage 5865 | . . . . 43 . . . 894 . . . . 88 328 102 . . 484 . . . . . 1904 321 . . . . . . . . 1701 . Kills 36 | . . . . . . . . 10 . . . . . 1 1 . . 3 . . . . . 10 2 . . . . . . . . 9 . Allies Corrupted 2 | . . . . . . . . . 1 . . . . . . . . . . . . . 1 . . . . . . . . . . . . Allies Melted . | . . . . . . . . . . . . . . . . . . . . . . . . . . . . . . . . . . . . Intel | -11 -10 -10 -9 -9 -9 -8 -8 -8 -7 -7 -7 -7 -6 -6 -6 -6 -6 -5 -5 -5 -5 -5 -4 -4 -4 -4 -4 -3 -3 -3 -3 -2 -2 -1 -1 ------- Run | Scr Mat Min Mat Min Exi Min Mat Sto Fac Low Low Dat Pro Fac Low Low Zio Pro Fac Upp Upp Zhi Pro Fac Upp Upp War Pro Res Qua Sec Res Tes Acc Com Robot Analysis Total 9 | . . . 1 . . . . 4 . . . . . . . . . . . . . 4 . . . . . . . . . . . . . Derelict Logs Recovered 16 | . . . . 1 . . . . . 2 1 . 2 . 1 2 1 2 . 1 1 . 1 . 1 . . . . . . . . . . Drone Launches 56 | . . . . . . . . 14 4 . . . . . . 2 . . . . . . . . . . . . . 14 10 3 1 7 1 Drone Recoveries 37 | . . . . . . . . . 2 . . . . . . . . . . . . . . . . . . . . 13 10 3 1 7 1 Exploration | -11 -10 -10 -9 -9 -9 -8 -8 -8 -7 -7 -7 -7 -6 -6 -6 -6 -6 -5 -5 -5 -5 -5 -4 -4 -4 -4 -4 -3 -3 -3 -3 -2 -2 -1 -1 ------------- Run | Scr Mat Min Mat Min Exi Min Mat Sto Fac Low Low Dat Pro Fac Low Low Zio Pro Fac Upp Upp Zhi Pro Fac Upp Upp War Pro Res Qua Sec Res Tes Acc Com Turns Passed 68276 | 97 1630 289 4853 810 391 882 3032 6915 866 1254 745 149 740 3100 2588 1133 3199 1003 1284 3997 2991 441 2381 1331 3309 2985 855 1657 905 5246 2607 1042 1941 691 937 Spaces Moved 26308 | 58 788 134 1493 393 196 408 1278 2132 199 606 387 79 344 1391 1099 574 1657 469 459 1339 962 206 1039 476 981 1179 421 703 354 2018 979 329 673 282 223 Core 28 | 14 . . . . . . . . . . . . . . . . . . . . . . . . . . . . . . . . . . 14 Treads 25933 | 44 788 134 1159 393 196 408 1278 2132 199 606 387 79 344 1391 1099 574 1657 469 459 1339 962 206 1039 476 981 1179 421 703 354 2018 979 329 673 282 196 Legs 13 | . . . . . . . . . . . . . . . . . . . . . . . . . . . . . . . . . . . 13 Wheels 334 | . . . 334 . . . . . . . . . . . . . . . . . . . . . . . . . . . . . . . . Hover . | . . . . . . . . . . . . . . . . . . . . . . . . . . . . . . . . . . . . Flight . | . . . . . . . . . . . . . . . . . . . . . . . . . . . . . . . . . . . . Fastest Speed 50 | 50 160 180 150 200 200 200 180 180 195 170 190 190 190 172 178 178 178 192 187 185 185 185 185 180 182 182 200 182 180 173 167 167 167 177 50 Average Speed 184 | 133 163 180 186 200 200 200 180 193 199 185 190 190 190 177 180 178 186 197 190 186 185 185 185 184 182 184 201 197 180 186 171 167 174 177 181 Slowest Speed 240 | 160 180 180 200 200 200 200 180 200 200 195 190 190 205 202 198 198 192 222 212 190 185 185 185 185 182 202 202 202 200 210 185 167 177 177 240 Overloaded Moves . | . . . . . . . . . . . . . . . . . . . . . . . . . . . . . . . . . . . . Propulsion Burnouts . | . . . . . . . . . . . . . . . . . . . . . . . . . . . . . . . . . . . . Robots Hopped . | . . . . . . . . . . . . . . . . . . . . . . . . . . . . . . . . . . . . Cave-ins Triggered 1 | . . . . . . . . . . . . . . . . . . . . . . . . . . . . . . . . . . . 1 Exploration Rate (%) 57 | 5 91 41 95 81 54 94 72 96 8 78 56 69 41 18 90 63 84 61 13 96 85 60 59 12 94 83 72 66 9 93 49 10 62 9 17 Regions Visited 35 Branch Regions 25 Pre-discovered Areas 18 | . 2 . 2 1 1 . . . . . . 1 . . . 1 4 1 . 1 1 3 . . . . . . . . . . . . . Known Exits Taken 27 | . . . 1 . . . 1 . 1 1 1 1 1 1 1 1 1 1 1 1 1 1 1 1 1 1 1 1 1 1 1 1 . 1 . Unknown Exits Taken 8 | 1 1 1 . 1 1 1 . 1 . . . . . . . . . . . . . . . . . . . . . . . . 1 . . Scrap Searched 36 | . . 1 . 2 . 3 . . . 2 . . 3 . 3 4 4 3 . 2 1 . 1 . 3 2 . 2 . . . . . . . Spaces Dug 168 | . . . . 8 . . . 37 . 10 . . 13 3 2 . 8 14 10 6 . . 6 . 13 6 . 1 11 3 5 8 3 1 . Terrain Destroyed 885 | . . . 14 19 . 39 26 220 . 26 . . 24 11 6 . 8 18 44 22 . . 18 57 25 34 . 39 11 32 46 15 63 21 47 Melee 27 | . . . . . . . . 5 . 1 . . 12 . . . 2 . . . . . . . . 1 . . . . 3 2 1 . . Projectile 101 | . . . . . . 2 . . . . . . 1 3 2 . 2 2 1 2 . . 6 1 . 1 . 1 11 10 7 13 20 4 12 AOE 757 | . . . 14 19 . 37 26 215 . 25 . . 11 8 4 . 4 16 43 20 . . 12 56 25 32 . 38 . 22 36 . 42 17 35 Terrain Rammed . | . . . . . . . . . . . . . . . . . . . . . . . . . . . . . . . . . . . . Walls Destroyed . | . . . . . . . . . . . . . . . . . . . . . . . . . . . . . . . . . . . . Machines Disabled . | . . . . . . . . . . . . . . . . . . . . . . . . . . . . . . . . . . . . Actions | -11 -10 -10 -9 -9 -9 -8 -8 -8 -7 -7 -7 -7 -6 -6 -6 -6 -6 -5 -5 -5 -5 -5 -4 -4 -4 -4 -4 -3 -3 -3 -3 -2 -2 -1 -1 --------- Run | Scr Mat Min Mat Min Exi Min Mat Sto Fac Low Low Dat Pro Fac Low Low Zio Pro Fac Upp Upp Zhi Pro Fac Upp Upp War Pro Res Qua Sec Res Tes Acc Com Total 43390 | 71 1012 167 3390 408 196 451 1884 4720 644 694 391 78 403 1906 1662 678 1746 534 722 2774 2100 245 1417 843 2479 1892 430 931 550 3353 1618 768 1252 435 546 Wait 13031 | 1 115 10 1609 5 1 16 370 2342 407 16 . . 23 314 474 74 21 28 102 1314 1072 5 276 257 1433 581 . 151 77 867 280 336 278 92 84 Move 26272 | 57 787 133 1492 392 195 407 1277 2131 198 605 386 78 343 1390 1098 573 1656 468 458 1338 961 205 1038 475 980 1178 420 702 353 2017 978 328 672 281 222 Hop . | . . . . . . . . . . . . . . . . . . . . . . . . . . . . . . . . . . . . Pick Up 392 | 4 15 5 40 . . 2 20 15 8 10 1 . . 34 3 2 29 20 13 7 4 2 5 5 2 18 3 10 9 31 24 7 24 7 13 Fast Attach 207 | 7 2 1 8 . . . 7 6 1 6 . . 4 7 3 7 3 1 11 10 1 8 3 6 4 9 1 2 8 46 15 . 7 2 11 Attach 151 | . 4 1 5 . . 1 3 2 2 2 . . . 11 2 2 . 1 6 1 . . . 2 3 5 . 2 5 15 19 10 13 6 28 Detach 104 | . 1 . 4 . . . 2 . . 1 . . . 8 2 2 . . 4 3 1 1 3 3 2 2 1 . 5 25 9 6 8 3 8 Swap 666 | . 5 2 31 3 . 7 23 31 7 14 1 . 8 39 29 5 6 6 24 34 13 5 23 26 17 25 3 20 27 83 44 19 46 16 24 Drop 478 | . 8 4 31 . . 1 29 31 7 13 . . 4 22 9 8 13 4 13 20 5 9 9 9 7 19 2 13 14 90 34 3 28 7 12 Fire 1637 | 2 72 11 127 6 . 17 115 108 13 23 3 . 7 61 23 5 14 6 86 42 33 . 50 50 10 42 . 27 44 109 169 56 170 18 118 Melee 148 | . . . 2 . . . . 18 . 4 . . 14 . . . 4 . . . 9 10 2 3 2 9 . . 1 37 29 2 1 1 . Ram 5 | . . . . . . . . . . . . . . . . . . . . . . . . . . . . . . . . . . . 5 Kick . | . . . . . . . . . . . . . . . . . . . . . . . . . . . . . . . . . . . . Crush 31 | . 3 . 2 2 . . . 2 1 . . . . 2 . . . . 1 . . . . 3 . . . . . . . 1 2 2 10 Escape Stasis 10 | . . . . . . . . . . . . . . 3 . . . . . . . . . . . . . . . . . . . . 7 Rewire 32 | . . . . . . . . . . . . . . . 13 . . . . . . . . . 18 1 . . . . . . . . . Trap 219 | . . . 39 . . . 38 27 . . . . . 15 6 . . . 4 5 1 . 8 4 1 3 . 4 7 33 17 . 3 . 4 Miscellaneous 7 | . . . . . . . . 7 . . . . . . . . . . . . . . . . . . . . . . . . . . . Route ------- -11/Scrapyard -10/Materials (discovered 4 exits: *Mat x2 / [*Min x2]) -10/Mines -9/Materials (discovered 5 exits: *Mat x3 / *Min x2) -9/Mines -9/Exiles -8/Mines (discovered 2 exits: *Mat x2) -8/Materials (discovered 3 exits: *Fac x2 / *Sto) -8/Storage -7/Factory -7/Lower Caves -7/Lower Caves -7/Data Miner -6/Proximity Caves -6/Factory (discovered 4 exits: Fac x2 / *Low x2) -6/Lower Caves -6/Lower Caves -6/Zion -5/Proximity Caves -5/Factory (discovered 4 exits: Fac x2 / *Upp x2) -5/Upper Caves -5/Upper Caves -5/Zhirov -4/Proximity Caves -4/Factory (discovered 5 exits: *Upp x2 / Ext x2 / Arm) -4/Upper Caves -4/Upper Caves (discovered 2 exits: *Res / *War) -4/Warlord -3/Proximity Caves -3/Research -3/Quarantine (discovered 2 exits: *Res / *Sec) -3/Section 7 -2/Research (discovered 3 exits: *Acc / *Tes x2) -2/Testing -1/Access (discovered 2 exits: Sur / *Com) -1/Command History --------- Turn | Location | Event 4 | -11/Scrapyard | Discovered new exit (range 16) 98 | -11/Scrapyard | Entered Materials 212 | -10/Materials | Central database locked down 225 | -10/Materials | Discovered new exit (range 16) 320 | -10/Materials | Build established: Mutant 837 | -10/Materials | Repaired Lgt. Treads 864 | -10/Materials | Repaired Core Shielding 1134 | -10/Materials | Discovered new exit (range 12) 1280 | -10/Materials | Discovered new exit (range 7) 1437 | -10/Materials | Discovered new exit (range 15) 1728 | -10/Materials | Entered Mines 1746 | -10/Mines | Joined a pair of Derelicts in attacking an 0b10 outpost 1876 | -10/Mines | A weapon hastily lodged in a ceiling crevice suddenly fell to the ground 1964 | -10/Mines | Discovered new exit (range 8) 1978 | -10/Mines | Found a damaged Exp. Sensor Array with a note attached 1984 | -10/Mines | Found Prototype Device 2017 | -10/Mines | Entered Materials 2017 | -9/Materials | Evolved 2 slots: Utility x2 2305 | -9/Materials | Build established: Hauler-Mutant 2556 | -9/Materials | Discovered new exit (range 16) 3169 | -9/Materials | Repaired Lgt. Treads 3231 | -9/Materials | Discovered new exit (range 16) 3404 | -9/Materials | Repaired Adv. Beam Cannon 3437 | -9/Materials | Repaired Arm. Wheel 3727 | -9/Materials | Build established: Scavenger-Mutant 3727 | -9/Materials | Identified exit to Mines 3901 | -9/Materials | Discovered new exit (range 9) 4146 | -9/Materials | Build established: Hauler-Mutant 4727 | -9/Materials | Identified Exp. Sensor Array 5309 | -9/Materials | Discovered new exit (range 16) 6367 | -9/Materials | Discovered new exit (range 15) 6870 | -9/Materials | Entered Mines 7283 | -9/Mines | Deemed a non-threat by the Exiles lab entrance 7283 | -9/Mines | Discovered new exit (range 5) 7378 | -9/Mines | Escorted by a lone wolf Derelict 7398 | -9/Mines | Learned location of Storage (-8) 7680 | -9/Mines | Entered Exiles 7680 | -9/Exiles | Accompanied by 3 allies 7710 | -9/Exiles | Led the pair of lost Derelicts to a safe place 7731 | -9/Exiles | Met 8R-AWN 7765 | -9/Exiles | Met EX-HEX 7867 | -9/Exiles | Met EX-DEC 7903 | -9/Exiles | Learned location of Zion (-6) 8047 | -9/Exiles | Discovered new exit (range 14) 8071 | -9/Exiles | Entered Mines 8205 | -8/Mines | Discovered new exit (range 11) 8392 | -8/Mines | Discovered new exit (range 8) 8953 | -8/Mines | Entered Materials 8953 | -8/Materials | Evolved 2 slots: Propulsion x1, Utility x1 8954 | -8/Materials | Identified exit to Storage 10844 | -8/Materials | Discovered new exit (range 12) 11360 | -8/Materials | Discovered new exit (range 16) 11985 | -8/Materials | Entered Storage 12082 | -8/Storage | Garrison activated, responded to threat 12615 | -8/Storage | Repaired Lgt. Treads 12862 | -8/Storage | Discovered new exit (range 16) 13436 | -8/Storage | Met a pair of Derelict thieves 13568 | -8/Storage | Destroyed 7 combat bots 14322 | -8/Storage | Assisted by bots powering up and referring to "LRC-V3" 14385 | -8/Storage | First assault squad dispatched 14617 | -8/Storage | Build established: Commander-Mutant 14729 | -8/Storage | Repaired Lgt. Treads 15493 | -8/Storage | Build established: Hauler-Mutant 16046 | -8/Storage | Destroyed 10 combat bots 17224 | -8/Storage | Destroyed 14 combat bots 18014 | -8/Storage | Destroyed 9 combat bots 18392 | -8/Storage | Core integrity fell below 50% 18392 | -8/Storage | High security lockdown imminent 18417 | -8/Storage | Destroyed 8 combat bots 18472 | -8/Storage | High security lockdown engaged 18530 | -8/Storage | Destroyed 22 combat bots 18603 | -8/Storage | Sterilization system engaged 18603 | -8/Storage | Non-combat units ordered to evacuate 18622 | -8/Storage | Destroyed 17 combat bots 18703 | -8/Storage | Combat units ordered to evacuate 18900 | -8/Storage | Entered Factory 18900 | -7/Factory | Accompanied by 1 ally 18900 | -7/Factory | Evolved 2 slots: Utility x2 18970 | -7/Factory | Discovered new exit (range 9) 18986 | -7/Factory | Identified exit to Lower Caves 19300 | -7/Factory | First assault squad dispatched 19766 | -7/Factory | Entered Lower Caves 19835 | -7/Lower Caves | Learned 8 Factory zone layouts 19887 | -7/Lower Caves | Ambushed by wild Derelicts 20444 | -7/Lower Caves | Spotted B-75 Beast 20476 | -7/Lower Caves | Destroyed B-75 Beast 20649 | -7/Lower Caves | Learned location of 1 exit from Factory 20835 | -7/Lower Caves | Discovered new exit (range 7) 20845 | -7/Lower Caves | Identified exit to Lower Caves 20903 | -7/Lower Caves | Found Alien Artifact 20903 | -7/Lower Caves | Identified Core Expander 20903 | -7/Lower Caves | Installed Core Expander, added new Utility slot 21020 | -7/Lower Caves | Entered another Lower Caves area 21460 | -7/Lower Caves | Discovered new exit (range 16) 21479 | -7/Lower Caves | Learned Factory emergency access door positions 21486 | -7/Lower Caves | Identified exit to Data Miner 21765 | -7/Lower Caves | Entered Data Miner 21765 | -7/Data Miner | Discovered new exit (range 6) 21802 | -7/Data Miner | Met Data Miner 21838 | -7/Data Miner | Learned location of Section 7 (-3) 21838 | -7/Data Miner | Acquired the access code to Warlord's prototype stash 21870 | -7/Data Miner | Received God Mode back door access code from Data Miner 21912 | -7/Data Miner | Identified exit to Proximity Caves 21914 | -7/Data Miner | Entered Proximity Caves 22050 | -6/Proximity Caves | Learned Factory interactive machine intel 22565 | -6/Proximity Caves | Escorted by Enhanced Grunt 22576 | -6/Proximity Caves | Discovered new exit (range 14) 22611 | -6/Proximity Caves | Learned location of 1 exit from Factory 22652 | -6/Proximity Caves | Identified exit to Factory 22654 | -6/Proximity Caves | Entered Factory 22654 | -6/Factory | Accompanied by 2 allies 22654 | -6/Factory | Evolved 2 slots: Propulsion x1, Utility x1 22655 | -6/Factory | Identified exit to Factory 22658 | -6/Factory | Loaded intel: 45 interactive machine locations 23356 | -6/Factory | Repaired Neutron Cannon 23413 | -6/Factory | Identified exit to Lower Caves 24358 | -6/Factory | Fabricated Exp. Sensor Array (x1) 24391 | -6/Factory | Fabricated Trap Extractor? 24558 | -6/Factory | Repaired Imp. Medium Treads 24559 | -6/Factory | Repaired Adv. Treads? 24594 | -6/Factory | Repaired Med. Reactive Plating? 24619 | -6/Factory | Repaired Adv. EMP Blaster 24696 | -6/Factory | Repaired Broken Adv. EMP Blaster 24741 | -6/Factory | Repaired Rnf. Deuterium Engine 24990 | -6/Factory | Build established: Trapper-Mutant 25021 | -6/Factory | Repaired Adv. Beam Cannon 25068 | -6/Factory | Repaired Med. Treads 25754 | -6/Factory | Entered Lower Caves 27631 | -6/Lower Caves | Encountered a Warlord checkpoint 27922 | -6/Lower Caves | Identified exit to Lower Caves 28342 | -6/Lower Caves | Entered another Lower Caves area 28342 | -6/Lower Caves | Accompanied by 1 ally 28651 | -6/Lower Caves | Attracted the attention of an 0b10 checkpoint 29032 | -6/Lower Caves | Learned 4 Factory zone layouts 29092 | -6/Lower Caves | Discovered new exit (range 11) 29116 | -6/Lower Caves | Identified exit to Zion 29475 | -6/Lower Caves | Entered Zion 29475 | -6/Zion | Accompanied by 1 ally 29513 | -6/Zion | Found Unknown Piercing Weapon 29514 | -6/Zion | Identified CR-A16's Pointy Stick 29617 | -6/Zion | Discovered new exit (range 12) 29799 | -6/Zion | Learned location of Quarantine (-3) 30185 | -6/Zion | Gained Derelict followers 30343 | -6/Zion | Learned 8 Factory zone layouts 30466 | -6/Zion | Given the Hacking Drone Bay 30467 | -6/Zion | Found Prototype Device 30468 | -6/Zion | Identified Hacking Drone Bay 32670 | -6/Zion | Identified exit to Proximity Caves 32674 | -6/Zion | Entered Proximity Caves 32674 | -5/Proximity Caves | Accompanied by 4 allies 33178 | -5/Proximity Caves | Learned Factory garrison access intel 33536 | -5/Proximity Caves | Discovered exit to Factory (range 11) 33677 | -5/Proximity Caves | Entered Factory 33677 | -5/Factory | Accompanied by 3 allies 33677 | -5/Factory | Evolved 2 slots: Power x1, Utility x1 33678 | -5/Factory | Identified exit to Factory 33678 | -5/Factory | Identified exit to Upper Caves 33679 | -5/Factory | Loaded intel: 4 garrison access locations 34266 | -5/Factory | Lost 3 parts (1n2u) 34270 | -5/Factory | Destroyed 11 combat bots 34377 | -5/Factory | System corruption reached 10% 34442 | -5/Factory | Build established: Hauler-Mutant 34877 | -5/Factory | First assault squad dispatched 34961 | -5/Factory | Entered Upper Caves 35133 | -5/Upper Caves | Build established: Scavenger-Mutant 36559 | -5/Upper Caves | Attracted the attention of an 0b10 outpost 36589 | -5/Upper Caves | Destroyed 8 combat bots 36706 | -5/Upper Caves | Spotted B-75 Beast 36761 | -5/Upper Caves | Destroyed B-75 Beast 37305 | -5/Upper Caves | Discovered new exit (range 12) 37737 | -5/Upper Caves | Identified exit to Upper Caves 38958 | -5/Upper Caves | Entered another Upper Caves area 40211 | -5/Upper Caves | Spotted B-75 Beast 40251 | -5/Upper Caves | Destroyed B-75 Beast 40868 | -5/Upper Caves | Discovered new exit (range 4) 40873 | -5/Upper Caves | Identified exit to Zhirov 41053 | -5/Upper Caves | Learned location of Warlord (-4) 41949 | -5/Upper Caves | Entered Zhirov 41949 | -5/Zhirov | Accompanied by 2 allies 41949 | -5/Zhirov | Discovered new exit (range 3) 41983 | -5/Zhirov | Met Zhirov 42023 | -5/Zhirov | Learned location of Testing (-2) 42023 | -5/Zhirov | Learned location of Command (-1) 42035 | -5/Zhirov | Zhirov requested help retrieving the SGEMP Prototype 42067 | -5/Zhirov | Found Alien Artifact 42067 | -5/Zhirov | Identified Integrated Dissipator 42067 | -5/Zhirov | Installed Integrated Dissipator, increased core heat dissipation (+20) 42094 | -5/Zhirov | Found Alien Artifact 42386 | -5/Zhirov | Identified exit to Proximity Caves 42390 | -5/Zhirov | Entered Proximity Caves 42390 | -4/Proximity Caves | Accompanied by 2 allies 42550 | -4/Proximity Caves | Spotted B-86 Titan 42700 | -4/Proximity Caves | Destroyed B-86 Titan 42723 | -4/Proximity Caves | Found Hvy. Reflective Plating 44654 | -4/Proximity Caves | Attracted the attention of an 0b10 checkpoint 44771 | -4/Proximity Caves | Entered Factory 44771 | -4/Factory | Accompanied by 1 ally 44771 | -4/Factory | Evolved 2 slots: Utility x2 45021 | -4/Factory | First assault squad dispatched 45047 | -4/Factory | Incoming assault squad redirected 45145 | -4/Factory | Fabricated Exp. Signal Interpreter (x1) 45398 | -4/Factory | Identified exit to Upper Caves 45398 | -4/Factory | Identified exit to Extension 45398 | -4/Factory | Identified exit to Armory 45622 | -4/Factory | Garrison activated, responded to threat 46102 | -4/Factory | Entered Upper Caves 46104 | -4/Upper Caves | Attracted the attention of an 0b10 outpost 46136 | -4/Upper Caves | Destroyed 7 combat bots 46218 | -4/Upper Caves | Attracted the attention of an 0b10 checkpoint 46485 | -4/Upper Caves | Learned Research emergency access door positions 47320 | -4/Upper Caves | Spotted B-86 Titan 49369 | -4/Upper Caves | Discovered new exit (range 7) 49406 | -4/Upper Caves | Identified exit to Upper Caves 49411 | -4/Upper Caves | Entered another Upper Caves area 49411 | -4/Upper Caves | Accompanied by 1 ally 50946 | -4/Upper Caves | Spotted B-86 Titan 51025 | -4/Upper Caves | Revealed the true nature of CR-A16's Pointy Stick 51025 | -4/Upper Caves | Destroyed B-86 Titan 51054 | -4/Upper Caves | Lost 4 parts (4u) 51205 | -4/Upper Caves | Discovered new exit (range 5) 51212 | -4/Upper Caves | Identified exit to Research 51424 | -4/Upper Caves | Build established: Trapper-Mutant 51813 | -4/Upper Caves | Attracted the attention of an 0b10 checkpoint 51829 | -4/Upper Caves | Discovered new exit (range 14) 52280 | -4/Upper Caves | Identified exit to Warlord 52396 | -4/Upper Caves | Entered Warlord 52807 | -4/Warlord | Found Prototype Device 52807 | -4/Warlord | Identified Minesniffer Drone Bay 52812 | -4/Warlord | Found Minesniffer Drone Bay 52815 | -4/Warlord | Found Minesniffer Drone Bay 52823 | -4/Warlord | Found Minesniffer Drone Bay 53195 | -4/Warlord | Opened side exit 53236 | -4/Warlord | Discovered new exit (range 9) 53248 | -4/Warlord | Identified exit to Proximity Caves 53251 | -4/Warlord | Entered Proximity Caves 53458 | -3/Proximity Caves | Spotted B-86 Titan 53740 | -3/Proximity Caves | Build established: Hauler-Mutant 54870 | -3/Proximity Caves | Discovered exit to Research (range 10) 54908 | -3/Proximity Caves | Entered Research 54908 | -3/Research | Evolved 2 slots: Utility x2 54930 | -3/Research | Build established: Trapper-Mutant 54966 | -3/Research | Spotted B-86 Titan 55028 | -3/Research | Destroyed B-86 Titan 55053 | -3/Research | Found Hvy. Reflective Plating 55687 | -3/Research | Build established: Hauler-Mutant 55717 | -3/Research | Discovered new exit (range 5) 55732 | -3/Research | Identified exit to Quarantine 55739 | -3/Research | Found Unknown Protection 55739 | -3/Research | Identified Powered Armor 55813 | -3/Research | Entered Quarantine 55947 | -3/Quarantine | Repaired Hvy. Armor Plating 56130 | -3/Quarantine | Found Alien Impact Weapon 56315 | -3/Quarantine | Found Prototype Device 56327 | -3/Quarantine | Identified EM Dispersion Field 56643 | -3/Quarantine | Found Unknown Device 56643 | -3/Quarantine | Identified Quantum Capacitor 56691 | -3/Quarantine | Repaired Imp. Cooling System 56900 | -3/Quarantine | Found Alien Artifact 56900 | -3/Quarantine | Identified Matter Drive 57070 | -3/Quarantine | Discovered new exit (range 10) 57123 | -3/Quarantine | Cryocooling Duct disabled 57138 | -3/Quarantine | Ambient heat levels rising (+20) 57138 | -3/Quarantine | Non-combat units ordered to evacuate 57301 | -3/Quarantine | System corruption reached 10% 57362 | -3/Quarantine | Lost 3 parts (1p2u) 57528 | -3/Quarantine | Cryocooling Duct disabled 57528 | -3/Quarantine | Cryocooling Duct disabled 57543 | -3/Quarantine | Ambient heat levels rising (+40) 57543 | -3/Quarantine | Combat units ordered to evacuate 57643 | -3/Quarantine | Quarantine Guard activated 57644 | -3/Quarantine | Found Alien Artifact 58315 | -3/Quarantine | Spotted Quarantine Guard 58326 | -3/Quarantine | Destroyed Quarantine Guard 58327 | -3/Quarantine | Spotted Quarantine Guard 58333 | -3/Quarantine | Destroyed Quarantine Guard 58460 | -3/Quarantine | Spotted Quarantine Guard 58465 | -3/Quarantine | Destroyed Quarantine Guard 58612 | -3/Quarantine | Spotted Quarantine Guard 58619 | -3/Quarantine | Destroyed Quarantine Guard 58765 | -3/Quarantine | Spotted Fortress 58849 | -3/Quarantine | Identified Core Stripper 59140 | -3/Quarantine | Found Prototype Device 59140 | -3/Quarantine | Identified Exp. Force Field 59531 | -3/Quarantine | Spotted Quarantine Guard 59563 | -3/Quarantine | Destroyed Quarantine Guard 59796 | -3/Quarantine | Found Alien Artifact 59805 | -3/Quarantine | Found Alien Artifact 59874 | -3/Quarantine | Spotted Quarantine Guard 59886 | -3/Quarantine | Destroyed Quarantine Guard 60187 | -3/Quarantine | Build established: Scavenger-Mutant 60209 | -3/Quarantine | Spotted Quarantine Guard 60220 | -3/Quarantine | Destroyed Quarantine Guard 60244 | -3/Quarantine | Identified exit to Research 60265 | -3/Quarantine | Identified Core Reset Matrix 60286 | -3/Quarantine | Identified Dimensional Node Initializer 60742 | -3/Quarantine | Build established: Hauler-Mutant 60751 | -3/Quarantine | Destroyed Fortress 60764 | -3/Quarantine | Found Prototype Protection 60764 | -3/Quarantine | Identified Centrium Heavy Armor Plating 61022 | -3/Quarantine | Discovered new exit (range 13) 61022 | -3/Quarantine | Spotted Quarantine Guard 61029 | -3/Quarantine | Destroyed Quarantine Guard 61054 | -3/Quarantine | Identified exit to Section 7 61059 | -3/Quarantine | Entered Section 7 61100 | -3/Section 7 | Found Alien Artifact 61420 | -3/Section 7 | Incoming investigation squad redirected 61480 | -3/Section 7 | Destroyed 10 combat bots 61587 | -3/Section 7 | First assault squad dispatched 61732 | -3/Section 7 | Incoming assault squad redirected 61806 | -3/Section 7 | Found Integrated Dissipator 61806 | -3/Section 7 | Installed Integrated Dissipator, increased core heat dissipation (+20) 62159 | -3/Section 7 | Identified Integrity Redistributor 62159 | -3/Section 7 | Identified Hpw. Transdimensional Reconstructor 62159 | -3/Section 7 | Identified Transdimensional Reconstructor 62325 | -3/Section 7 | Incoming assault squad redirected 62330 | -3/Section 7 | Destroyed 7 combat bots 62331 | -3/Section 7 | Incoming assault squad redirected 62390 | -3/Section 7 | Build established: Scavenger-Mutant 62772 | -3/Section 7 | Incoming investigation squad redirected 62865 | -3/Section 7 | Incoming assault squad redirected 62930 | -3/Section 7 | Build established: Hauler-Mutant 63140 | -3/Section 7 | Destroyed 7 combat bots 63159 | -3/Section 7 | Spotted S7 Guard 63201 | -3/Section 7 | Destroyed S7 Guard 63243 | -3/Section 7 | Found Prototype Protection 63243 | -3/Section 7 | Identified Hvy. Regenerative Plating 63290 | -3/Section 7 | Garrison activated, responded to threat 63309 | -3/Section 7 | Spotted Alpha 7 63315 | -3/Section 7 | Spotted Alpha 7 63324 | -3/Section 7 | Incoming assault squad redirected 63333 | -3/Section 7 | Used Integrity Redistributor, redistributed integrity from core (-302) 63334 | -3/Section 7 | Core integrity fell below 50% 63357 | -3/Section 7 | Incoming assault squad redirected 63393 | -3/Section 7 | Destroyed Alpha 7 63405 | -3/Section 7 | Found Prototype Device 63405 | -3/Section 7 | Identified Exp. ECM Suite 63414 | -3/Section 7 | Destroyed Alpha 7 63414 | -3/Section 7 | Core integrity fell below 20% 63432 | -3/Section 7 | Found Prototype Processor 63432 | -3/Section 7 | Identified Exp. Target Analyzer 63442 | -3/Section 7 | Found Prototype Processor 63442 | -3/Section 7 | Identified Exp. Targeting Computer 63510 | -3/Section 7 | Found Alien Artifact 63510 | -3/Section 7 | Identified Core Membrane 63510 | -3/Section 7 | Installed Core Membrane, gained immunity to corruption 63511 | -3/Section 7 | Initialized slip node 63599 | -3/Section 7 | Incoming assault squad redirected 63631 | -3/Section 7 | Spotted B-86 Titan 63641 | -3/Section 7 | Incoming assault squad redirected 63660 | -3/Section 7 | Discovered exit to Research (range 5) 63666 | -3/Section 7 | Entered Research 63666 | -2/Research | Evolved 2 slots: Utility x2 63717 | -2/Research | Identified exit to Testing 63762 | -2/Research | Build established: Scavenger-Mutant 63886 | -2/Research | Garrison activated, responded to threat 63916 | -2/Research | First assault squad dispatched 63931 | -2/Research | Incoming assault squad redirected 63995 | -2/Research | Discovered new exit (range 12) 64138 | -2/Research | Destroyed 8 combat bots 64143 | -2/Research | Spotted B-90 Cyclops 64224 | -2/Research | Incoming assault squad redirected 64229 | -2/Research | Incoming assault squad redirected 64302 | -2/Research | Repaired Hvy. Proton Cannon 64708 | -2/Research | Entered Testing 64755 | -2/Testing | Found Prototype Energy Gun 64755 | -2/Testing | Identified Warp Gun 64991 | -2/Testing | Found Prototype Device 65004 | -2/Testing | Identified Exp. Transmission Jammer 65115 | -2/Testing | Build established: Hauler-Mutant 65144 | -2/Testing | Found Prototype Device 65145 | -2/Testing | Identified Thermal Barrier 65175 | -2/Testing | Spotted Striker 65178 | -2/Testing | Spotted Striker 65218 | -2/Testing | Spotted Alpha 7 65242 | -2/Testing | Destroyed Alpha 7 65243 | -2/Testing | First assault squad dispatched 65270 | -2/Testing | Incoming assault squad redirected 65316 | -2/Testing | Destroyed Striker 65339 | -2/Testing | Stole the SGEMP Prototype 65365 | -2/Testing | Repaired Hvy. Proton Missile Launcher? 65424 | -2/Testing | Found Prototype Processor 65427 | -2/Testing | Identified Exp. Armor Integrity Analyzer 65787 | -2/Testing | Discovered new exit (range 12) 66003 | -2/Testing | Incoming assault squad redirected 66157 | -2/Testing | Destroyed 9 combat bots 66264 | -2/Testing | Incoming assault squad redirected 66377 | -2/Testing | Fabricated Exp. Signal Interpreter? 66476 | -2/Testing | Incoming assault squad redirected 66520 | -2/Testing | Scanned by Researcher 66554 | -2/Testing | Incoming assault squad redirected 66583 | -2/Testing | Lost 5 parts (3u2w) 66602 | -2/Testing | Destroyed 15 combat bots 66649 | -2/Testing | Entered Access 66649 | -1/Access | Evolved 2 slots: Utility x2 66650 | -1/Access | Loaded intel: 101 machine locations 66650 | -1/Access | Loaded intel: 57 trap records 66650 | -1/Access | Identified exit to Surface 66650 | -1/Access | Discovered exit to Surface (range 141) 66650 | -1/Access | Identified exit to Command 66650 | -1/Access | Discovered exit to Command (range 119) 66650 | -1/Access | Delivered the SGEMP Prototype to Zhirov 66650 | -1/Access | Zhirov transferred Access data 66686 | -1/Access | Found Unknown Protection 66686 | -1/Access | Identified Hvy. Reactive Plating 66691 | -1/Access | Found Hvy. Reactive Plating 66694 | -1/Access | Found Hvy. Reactive Plating 66942 | -1/Access | First assault squad dispatched 66958 | -1/Access | Incoming assault squad redirected 67024 | -1/Access | Zhirov warped through subspace 67340 | -1/Access | Entered Command 67555 | -1/Command | Destroyed 13 combat bots 67616 | -1/Command | First assault squad dispatched 67712 | -1/Command | High security lockdown imminent 67792 | -1/Command | High security lockdown engaged 67875 | -1/Command | Spotted Executioner 67875 | -1/Command | Spotted Striker 67876 | -1/Command | Destroyed Executioner 67879 | -1/Command | Spotted Executioner 67879 | -1/Command | Spotted Striker 67880 | -1/Command | Destroyed Striker 67899 | -1/Command | Destroyed Striker 67903 | -1/Command | Destroyed Executioner 67941 | -1/Command | Destroyed 16 combat bots 67949 | -1/Command | Lost 3 parts (3u) 67962 | -1/Command | Spotted Investigator 67963 | -1/Command | Spotted Striker 67963 | -1/Command | Spotted Striker 67964 | -1/Command | Spotted Striker 67965 | -1/Command | Spotted Striker 67966 | -1/Command | Destroyed Investigator 67966 | -1/Command | Spotted Executioner 67968 | -1/Command | Spotted Striker 67969 | -1/Command | Destroyed Striker 67974 | -1/Command | Destroyed Striker 67974 | -1/Command | Destroyed Striker 67974 | -1/Command | Destroyed Executioner 67975 | -1/Command | Destroyed Striker 67979 | -1/Command | Destroyed Striker 68021 | -1/Command | Destroyed 16 combat bots 68061 | -1/Command | Found Prototype Launcher 68097 | -1/Command | Identified Containment Facilitator 68103 | -1/Command | Spotted M Guard 68103 | -1/Command | Spotted M Guard 68103 | -1/Command | Spotted Combat Programmer 68111 | -1/Command | Spotted Executioner 68111 | -1/Command | Spotted Striker 68123 | -1/Command | Spotted Combat Programmer 68139 | -1/Command | Spotted Striker 68140 | -1/Command | Spotted Executioner 68143 | -1/Command | Spotted Executioner 68143 | -1/Command | Spotted Striker 68144 | -1/Command | Spotted Striker 68150 | -1/Command | Crushed by falling debris 68170 | -1/Command | Failed to warp due to unstable space 68171 | -1/Command | Failed to warp due to unstable space 68217 | -1/Command | Core integrity fell below 50% 68266 | -1/Command | Released all parts (4) 68275 | -1/Command | Core integrity fell below 20% 68277 | -1/Command | Destroyed by P-80 Master with Gamma Rifle Last Messages --------------- 68262_ ALERT: Heavy assault forces dispatched. 68264_ Penetrated by EMDS Slug. 68265_ Biometal Leg destroyed. 68265_ Dropped KE Penetrator. 68266_ Released Exp. Targeting Computer. 68266_ Released Hcp. Storage Unit. 68266_ Released Exp. Armor Integrity Analyzer. 68266_ Released Hcp. Storage Unit. 68269_ Slammed into G-73 Enforcer. 68274_ Penetrated by Slug. 68274_ Slug penetrates Wall. 68274_ Slammed into Executioner. 68274_ Core Membrane filtered system corruption (1). 68275_ Slammed into P-80 Master. 68277_ Penetrated by Slug. 68277_ Slug penetrates Combat Programmer. 68277_ Penetrated by Slug. 68277_ Penetrated by EMDS Slug. 68277_ Core Membrane filtered system corruption (1). 68277_ Slammed into P-80 Master. Map ----- +----------------------------------------------------+ | ??????????????????????# # ! = #??????????????? | | ??????????????????????# # #??????????????? | | ??????????????????????# # #??????????????? | | ??????????????????????# # #??????????????? | | ??????????????????????# ###/##"""##?????????????? | | ??????????????????????# ??# ##]/ #?????????????? | | ??????????????????????# ??# ## /# #?????????????? | | ??????????????????????# ??# ## " #?????????????? | | ??????????????????????# ??# ## ## #?????????????? | | ??????????????????????# ###/##"#######??????????? | | ??????????????????????# # #??????????? | | ??????????????????????# # ! #??????????? | | ??????????????????????# # #??????????? | | ??????????????????????# # #??????????? | | ??????????????????????# # #??????????? | | ??????????????????????# # #??????????? | | ??????????????????????# / "" #??????????? | | ??????????????????????# # """" #??????????? | | ??????????????????????# # """" #??????????? | | ??????????????????????# !# "" #??????????? | | ??????????????????????# /# #??????????? | | ??????????????????????#g!# ! #??????????? | | ??????????????????????#]!#####/########??????????? | | ??????????????????????#!g#???# #?????????????????? | | ??????????????????????#Yp#####g#?????????????????? | | ??????????????????????#E]@ppEbg#?????????????????? | | ??????????????????????# /#####p#?????????????????? | | ????????????????????###+######/####??????????????? | | ????????????????????# ! #??????????????? | | ????????????????????# ! #??????????????? | | ???????????????????#" ! !#??????????????? | | ??????????????????# # #??????????????? | | ??????????????????#?# #??????????????? | | ????????????????????# """T""" #??????????????? | | ????????????????????###############??????????????? | | | | | | | | | | | | | | | | | | | | | | | | | | | | | | | +----------------------------------------------------+ Best States ------------- Heat Dissipation 176 Coolant Potential 240 Energy Generation 72 Energy Capacity 1200 Matter Stores 300 Matter Capacity 700 Sight Range 16 Robot Scan Range 30 Terrain Scan Range 18 Terrain Scan Density 10 Jamming Range 22 Cloak Strength 3 Power Amplification 40 Armor Coverage 3600 Resistance: KI 40 Resistance: TH 50 Core Shielding 30 Propulsion Shielding 90 Weapon Shielding 66 Weapon Cycling 25 Evasion (%) 50 Targeting Accuracy 12 Target Analysis 12 Core Analysis 8 Armor Integrity Analysis 90 Recoil Reduction 4 Matter Filtering 50 Offensive Hacking 14 Defensive Hacking 14 Item Schematics ----------------- Hcp. Storage Unit | -10/Materials | Hacked Trap Extractor | -9/Materials | Hacked Exp. Sensor Array | -9/Materials | Scanalyzed Structural Scanner | -9/Materials | Scanalyzed Hacking Suite | -9/Materials | Scanalyzed Adv. Beam Cannon | -9/Materials | Scanalyzed Arm. Wheel | -9/Materials | Scanalyzed Combat Drone Bay | -7/Data Miner | Free Lgt. Regenerative Plating | -7/Data Miner | Free Cloaking Device | -7/Data Miner | Free Exp. Signal Interpreter | -5/Factory | Hacked Spk. Medium Treads | -5/Factory | Scanalyzed Flamer | -5/Factory | Scanalyzed Assault Drone Bay | -5/Zhirov | Free Exp. Heat Sink | -5/Zhirov | Free Exp. Optical Array | -5/Zhirov | Free Imp. Arc Thrower | -5/Zhirov | Free Robot Schematics ------------------ M-14 Sweeper | -8/Materials | Hacked S-27 Virus | -7/Data Miner | Free G-50 Soldier | -7/Data Miner | Free L-41 Fighter | -7/Data Miner | Free H-66 Slayer | -7/Data Miner | Free P-70 Sage | -7/Data Miner | Free I-36 Angel | -7/Data Miner | Free I-47 Archangel | -7/Data Miner | Free Fabricated ------------ Exp. Sensor Array | x1 | -6/Factory Trap Extractor | x2 | -6/Factory Exp. Signal Interpreter | x1 | -4/Factory Exp. Signal Interpreter | x1 | -2/Testing Alien Tech Used ----------------- Core Expander Integrated Dissipator Matter Drive Core Stripper Integrity Redistributor Core Membrane Dimensional Node Initializer Transdimensional Reconstructor High-powered Transdimensional Reconstructor Achievements -------------- None Challenges ------------ None Game ------ Seed SkeletonPowerAmplifier Manual? 0 Play Time 06:02:46 Cumulative 759.2 hours Start 2021.01.17 @ 15:21:02 End 2021.01.18 @ 18:28:40 Sessions 11 Manual Loads 0 Difficulty Rogue Special Mode None Game No. 533 Rogue 529 Adventurer 4 Explorer 0 Win Type - Total 82 Types 63/8/4/3/2/0/0/1/1 Lore% 95 Gallery% 97 Achievement% 96 Wizard Run 0 Options --------- ASCII 0 Keyboard 1 Movement Vi Keybinds 0 Fullscreen 0 Font 16/Terminus Map View 76x50 Tactical HUD 1 Map Filters NONE Filters NONE Steam 1 RUN: b5d08b16-0a1a-4918-8483-e64b9c73cd7e